Workbook

Sheet intake (hidden)
B1: Duty Station DropDown | E1: Affiliation Dropdown
B2: 1 | C2: SELECT DUTY STATION | E2: 1 | F2: SELECT AFFILIATION
B3: 2 | C3: STORRS | E3: 2 | F3: Faculty
B4: 3 | C4: HEALTH CENTER | E4: 3 | F4: Staff - UCPEA/AAUP
B5: 4 | C5: AVERY POINT | E5: 4 | F5: Staff - MANAGERIAL
B6: 5 | C6: GREATER HARTFORD | E6: 5 | F6: Staff - P2
B7: 6 | C7: STAMFORD | E7: 6 | F7: Staff - NP-5
B8: 7 | C8: TORRINGTON | E8: 7 | F8: Staff - NP-3
B9: 8 | C9: WATERBURY | E9: 8 | F9: Staff - NP-2
B10: 9 | C10: LAW | E10: 9 | F10: Student
B11: 10 | C11: SOCIAL WORK | E11: 10 | F11: Volunteer
B12: 11 | C12: GBLC | E12: 11 | F12: Other
B13: 12 | C13: ='Travel Reimbursement'!L3 -> OTHER - Type In Next Box
B19: AM/PM Dropdown | E19: Yes/No Dropdown
B20: 1 | C20: AM | E20: 1 | F20: Yes
B21: 2 | C21: PM | E21: 2 | F21: No
B22: 3 | E22: 3
B24: Meal Method | E24: Per Diem Amounts
B25: 1 | C25: Reimbursement Method | E25: 1 | F25: PER DIEM RATES
B26: 2 | C26: Receipts | E26: 2 | F26: 46
B27: 3 | C27: Per Diem | E27: 3 | F27: 51
E28: 4 | F28: 56
E29: 5 | F29: 61
E30: 6 | F30: 66
E31: 7 | F31: 71
B32: Transportation Expense Type | E32: 8 | F32: FOREIGN/OTHER
B33: 1
B34: 2 | C34: Air
B35: 3 | C35: Taxi
B36: 4 | C36: Bus | E36: Business Expense Type
B37: 5 | C37: Train | E37: 1
B38: 6 | C38: Shuttle | E38: 2 | F38: Registration
B39: 7 | C39: Ferry | E39: 3 | F39: Internet
B40: 8 | C40: Rental Car | E40: 4 | F40: Copies / Fax
B41: 9 | C41: Fuel - Rental Car | E41: 5 | F41: Postage
B42: 10 | C42: Tolls | E42: 6 | F42: Baggage
B43: 11 | C43: Parking | E43: 7 | F43: Other (Explain in remarks)
B44: 12 | C44: Other (Explain in remarks)

Sheet Travel Reimbursement
A1: Traveler's Name: | F1: Department: | K1: U-Box:
A2: University Affiliation: | B2: 1 | F2: Travel Approval Number: | N2: FALSE | R2: M&IE Foreign Rate | T2: Breakfast | U2: Lunch | V2: Dinner | W2: IE
A3: Location of Travel: | F3: Official Duty Station: | H3: 1 | K3: Other duty: | L3: OTHER - Type In Next Box | N3: =intake!#REF! ->  | O3: =intake!#REF! ->  | P3: =$D$7 -> 8 | R3: =$H$7 -> 0 | T3: =IF($R$3=0, 0, VLOOKUP($R$3,RLT!$A$26:$E$294,2)) -> 0 | U3: =IF($R$3=0, 0, VLOOKUP($R$3,RLT!$A$26:$E$294,3)) -> 0 | V3: =IF($R$3=0, 0, VLOOKUP($R$3,RLT!$A$26:$E$294,4)) -> 0 | W3: =IF($R$3=0, 0, VLOOKUP($R$3,RLT!$A$26:$E$294,5)) -> 0
A4: Departure Date: | F4: Return Date: | L4: VERSION 3.3 | N4: =$D$7 -> 8
A5: Departure Time: | F5: 1 | G5: Return Time: | K5: 1 | N5: ='Mileage Log'!$F$4 -> 0 | O5: =RLT!A16 -> 0.575 | P5: =IF(B2=10,(N5*0.14),IF($N$2 = FALSE, SUM(N5*O5), N5*0.194 )) -> 0
A6: Per Diem Meals Section (Single Destination Trip) - Select any meals PROVIDED TO the Traveler in the corresponding day
C7: Select Rate: | D7: 8 | G7: Foreign/Other Rate: | J7: Per Diem Calculated: | L7: =SUM(X18:X23,'Per Diem Multiple Destinations'!G3) -> 0 | Q7: Per Diem Formulas Below
A8: =IF($D$7=1,"",$B$4) -> 00:00:00 | B8: =IF(A8="","",(IF(A8+1<=$H$4,A8+1,""))) ->  | D8: =IF(B8="","",(IF(B8+1<=$H$4,B8+1,""))) ->  | F8: =IF(D8="","",(IF(D8+1<=$H$4,D8+1,""))) ->  | H8: =IF(F8="","",(IF(F8+1<=$H$4,F8+1,""))) ->  | J8: =IF(H8="","",(IF(H8+1<=$H$4,H8+1,""))) ->  | L8: =IF(J8="","",(IF(J8+1<=$H$4,J8+1,""))) -> 
A9: 1 | B9: 1 | D9: 1 | F9: 1 | H9: 1 | J9: 1 | L9: 1 | Q9: =IF(VLOOKUP(A9,RLT!$I$3:$Q$14,$D7+1)="None", 0, IF(A8="",0, VLOOKUP(A9,RLT!$I$3:$Q$14,$D7+1))) -> 0 | R9: =IF(VLOOKUP(B9,RLT!$I$3:$Q$14,$D7+1)="None", 0, IF(B8="",0, VLOOKUP(B9,RLT!$I$3:$Q$14,$D7+1))) -> 0 | S9: =IF(VLOOKUP(D9,RLT!$I$3:$Q$14,$D7+1)="None", 0, IF(D8="",0, VLOOKUP(D9,RLT!$I$3:$Q$14,$D7+1))) -> 0 | T9: =IF(VLOOKUP(F9,RLT!$I$3:$Q$14,$D7+1)="None", 0, IF(F8="",0, VLOOKUP(F9,RLT!$I$3:$Q$14,$D7+1))) -> 0 | U9: =IF(VLOOKUP(H9,RLT!$I$3:$Q$14,$D7+1)="None", 0, IF(H8="",0, VLOOKUP(H9,RLT!$I$3:$Q$14,$D7+1))) -> 0 | V9: =IF(VLOOKUP(J9,RLT!$I$3:$Q$14,$D7+1)="None", 0, IF(J8="",0, VLOOKUP(J9,RLT!$I$3:$Q$14,$D7+1))) -> 0 | W9: =IF(VLOOKUP(L9,RLT!$I$3:$Q$14,$D7+1)="None", 0, IF(L8="",0, VLOOKUP(L9,RLT!$I$3:$Q$14,$D7+1))) -> 0
A10: =SUM(Q18:Q19) -> 0 | B10: =SUM(R18:R19) -> 0 | D10: =SUM(S18:S19) -> 0 | F10: =SUM(T18:T19) -> 0 | H10: =SUM(U18:U19) -> 0 | J10: =SUM(V18:V19) -> 0 | L10: =SUM(W18:W19) -> 0
A11: =IF(L8="","",(IF(L8+1<=$H$4,L8+1,""))) ->  | B11: =IF(A11="","",(IF(A11+1<=$H$4,A11+1,""))) ->  | D11: =IF(B11="","",(IF(B11+1<=$H$4,B11+1,""))) ->  | F11: =IF(D11="","",(IF(D11+1<=$H$4,D11+1,""))) ->  | H11: =IF(F11="","",(IF(F11+1<=$H$4,F11+1,""))) ->  | J11: =IF(H11="","",(IF(H11+1<=$H$4,H11+1,""))) ->  | L11: =IF(J11="","",(IF(J11+1<=$H$4,J11+1,""))) -> 
A12: 1 | B12: 1 | D12: 1 | F12: 1 | H12: 1 | J12: 1 | L12: 1 | Q12: =IF(VLOOKUP(A12,RLT!$I$3:$Q$14,$D7+1)="None", 0, IF(A11="",0, VLOOKUP(A12,RLT!$I$3:$Q$14,$D7+1))) -> 0 | R12: =IF(VLOOKUP(B12,RLT!$I$3:$Q$14,$D7+1)="None", 0, IF(B11="",0, VLOOKUP(B12,RLT!$I$3:$Q$14,$D7+1))) -> 0 | S12: =IF(VLOOKUP(D12,RLT!$I$3:$Q$14,$D7+1)="None", 0, IF(D11="",0, VLOOKUP(D12,RLT!$I$3:$Q$14,$D7+1))) -> 0 | T12: =IF(VLOOKUP(F12,RLT!$I$3:$Q$14,$D7+1)="None", 0, IF(F11="",0, VLOOKUP(F12,RLT!$I$3:$Q$14,$D7+1))) -> 0 | U12: =IF(VLOOKUP(H12,RLT!$I$3:$Q$14,$D7+1)="None", 0, IF(H11="",0, VLOOKUP(H12,RLT!$I$3:$Q$14,$D7+1))) -> 0 | V12: =IF(VLOOKUP(J12,RLT!$I$3:$Q$14,$D7+1)="None", 0, IF(J11="",0, VLOOKUP(J12,RLT!$I$3:$Q$14,$D7+1))) -> 0 | W12: =IF(VLOOKUP(L12,RLT!$I$3:$Q$14,$D7+1)="None", 0, IF(L11="",0, VLOOKUP(L12,RLT!$I$3:$Q$14,$D7+1))) -> 0
A13: =SUM(Q20:Q21) -> 0 | B13: =SUM(R20:R21) -> 0 | D13: =SUM(S20:S21) -> 0 | F13: =SUM(T20:T21) -> 0 | H13: =SUM(U20:U21) -> 0 | J13: =SUM(V20:V21) -> 0 | L13: =SUM(W20:W21) -> 0
A14: =IF(L11="","",(IF(L11+1<=$H$4,L11+1,""))) ->  | B14: =IF(A14="","",(IF(A14+1<=$H$4,A14+1,""))) ->  | D14: =IF(B14="","",(IF(B14+1<=$H$4,B14+1,""))) ->  | F14: =IF(D14="","",(IF(D14+1<=$H$4,D14+1,""))) ->  | H14: =IF(F14="","",(IF(F14+1<=$H$4,F14+1,""))) ->  | J14: =IF(H14="","",(IF(H14+1<=$H$4,H14+1,""))) ->  | L14: =IF(J14="","",(IF(J14+1<=$H$4,J14+1,""))) -> 
A15: 1 | B15: 1 | D15: 1 | F15: 1 | H15: 1 | J15: 1 | L15: 1 | Q15: =IF(VLOOKUP(A15,RLT!$I$3:$Q$14,$D7+1)="None", 0, IF(A14="",0, VLOOKUP(A15,RLT!$I$3:$Q$14,$D7+1))) -> 0 | R15: =IF(VLOOKUP(B15,RLT!$I$3:$Q$14,$D7+1)="None", 0, IF(B14="",0, VLOOKUP(B15,RLT!$I$3:$Q$14,$D7+1))) -> 0 | S15: =IF(VLOOKUP(D15,RLT!$I$3:$Q$14,$D7+1)="None", 0, IF(D14="",0, VLOOKUP(D15,RLT!$I$3:$Q$14,$D7+1))) -> 0 | T15: =IF(VLOOKUP(F15,RLT!$I$3:$Q$14,$D7+1)="None", 0, IF(F14="",0, VLOOKUP(F15,RLT!$I$3:$Q$14,$D7+1))) -> 0 | U15: =IF(VLOOKUP(H15,RLT!$I$3:$Q$14,$D7+1)="None", 0, IF(H14="",0, VLOOKUP(H15,RLT!$I$3:$Q$14,$D7+1))) -> 0 | V15: =IF(VLOOKUP(J15,RLT!$I$3:$Q$14,$D7+1)="None", 0, IF(J14="",0, VLOOKUP(J15,RLT!$I$3:$Q$14,$D7+1))) -> 0 | W15: =IF(VLOOKUP(L15,RLT!$I$3:$Q$14,$D7+1)="None", 0, IF(L14="",0, VLOOKUP(L15,RLT!$I$3:$Q$14,$D7+1))) -> 0
A16: =SUM(Q22:Q23) -> 0 | B16: =SUM(R22:R23) -> 0 | D16: =SUM(S22:S23) -> 0 | F16: =SUM(T22:T23) -> 0 | H16: =SUM(U22:U23) -> 0 | J16: =SUM(V22:V23) -> 0 | L16: =SUM(W22:W23) -> 0
A17: DATES | B17: SUBSISTENCE | F17: TRANSPORTATION | I17: BUSINESS EXPENSES | L17: TOTALS | Q17: 1 | R17: 2 | S17: 3 | T17: 4 | U17: 5 | V17: 6 | W17: 7
A18: DATE OF EXPENSE | B18: Receipted Meals | D18: Lodging | F18: Type | H18: Amount | I18: Type | K18: Amount | Q18: =IF(Q9=0, 0, IF($B$4="",0, IF(AND($B$5<0.29166,$F$5=1),Q9,IF(AND($B$5<0.45833,$F$5=1),Q9-HLOOKUP($D$7,RLT!$J$1:$Q$10,9),IF(AND($B$5>=0.5,$B$5<=0.541,$F$5=1),Q9,IF($F$5=1,Q9-HLOOKUP($D$7,RLT!$J$1:$Q$10,6),IF(AND($B$5>=0.5,$B$5<=0.541,$F$5=2),Q9-HLOOKUP($D$7,RLT!$J$1:$Q$10,6),IF(AND($B$5<0.20833,$F$5=2),Q9-HLOOKUP($D$7,RLT!$J$1:$Q$10,6),0)))))))) -> 0 | R18: =IF(R9=0, 0,IF(D8="",IF(OR(AND($H$5<=0.541,$K$5=1,$H$5>=0.5), AND($H$5<=0.375,$K$5=1)),0, IF($K$5=1,R9-HLOOKUP($D$7,RLT!$J$1:$Q$10,4), IF(AND($H$5<=0.0833,$K$5=2), R9-HLOOKUP($D$7,RLT!$J$1:$Q$10,4), IF(AND($H$5<=0.2916,$K$5=2),R9-HLOOKUP($D$7,RLT!$J$1:$Q$10,7),IF(AND($H$5<=0.541,$H$5>=0.5,$K$5=2),R9-HLOOKUP($D$7,RLT!$J$1:$Q$10,4), R9)))) ),R9)) -> 0 | S18: =IF(S9=0, 0,IF(F8="",IF(OR(AND($H$5<=0.541,$K$5=1,$H$5>=0.5), AND($H$5<=0.375,$K$5=1)),0, IF($K$5=1,S9-HLOOKUP($D$7,RLT!$J$1:$Q$10,4), IF(AND($H$5<=0.0833,$K$5=2), S9-HLOOKUP($D$7,RLT!$J$1:$Q$10,4), IF(AND($H$5<=0.2916,$K$5=2),S9-HLOOKUP($D$7,RLT!$J$1:$Q$10,7),IF(AND($H$5<=0.541,$H$5>=0.5,$K$5=2),S9-HLOOKUP($D$7,RLT!$J$1:$Q$10,4), S9)))) ),S9)) -> 0 | T18: =IF(T9=0, 0,IF(H8="",IF(OR(AND($H$5<=0.541,$K$5=1,$H$5>=0.5), AND($H$5<=0.375,$K$5=1)),0, IF($K$5=1,T9-HLOOKUP($D$7,RLT!$J$1:$Q$10,4), IF(AND($H$5<=0.0833,$K$5=2), T9-HLOOKUP($D$7,RLT!$J$1:$Q$10,4), IF(AND($H$5<=0.2916,$K$5=2),T9-HLOOKUP($D$7,RLT!$J$1:$Q$10,7),IF(AND($H$5<=0.541,$H$5>=0.5,$K$5=2),T9-HLOOKUP($D$7,RLT!$J$1:$Q$10,4), T9)))) ),T9)) -> 0 | U18: =IF(U9=0, 0,IF(J8="",IF(OR(AND($H$5<=0.541,$K$5=1,$H$5>=0.5), AND($H$5<=0.375,$K$5=1)),0, IF($K$5=1,U9-HLOOKUP($D$7,RLT!$J$1:$Q$10,4), IF(AND($H$5<=0.0833,$K$5=2), U9-HLOOKUP($D$7,RLT!$J$1:$Q$10,4), IF(AND($H$5<=0.2916,$K$5=2),U9-HLOOKUP($D$7,RLT!$J$1:$Q$10,7),IF(AND($H$5<=0.541,$H$5>=0.5,$K$5=2),U9-HLOOKUP($D$7,RLT!$J$1:$Q$10,4), U9)))) ),U9)) -> 0 | V18: =IF(V9=0, 0,IF(L8="",IF(OR(AND($H$5<=0.541,$K$5=1,$H$5>=0.5), AND($H$5<=0.375,$K$5=1)),0, IF($K$5=1,V9-HLOOKUP($D$7,RLT!$J$1:$Q$10,4), IF(AND($H$5<=0.0833,$K$5=2), V9-HLOOKUP($D$7,RLT!$J$1:$Q$10,4), IF(AND($H$5<=0.2916,$K$5=2),V9-HLOOKUP($D$7,RLT!$J$1:$Q$10,7),IF(AND($H$5<=0.541,$H$5>=0.5,$K$5=2),V9-HLOOKUP($D$7,RLT!$J$1:$Q$10,4), V9)))) ),V9)) -> 0 | W18: =IF(W9=0, 0,IF(A11="",IF(OR(AND($H$5<=0.541,$K$5=1,$H$5>=0.5), AND($H$5<=0.375,$K$5=1)),0, IF($K$5=1,W9-HLOOKUP($D$7,RLT!$J$1:$Q$10,4), IF(AND($H$5<=0.0833,$K$5=2), W9-HLOOKUP($D$7,RLT!$J$1:$Q$10,4), IF(AND($H$5<=0.2916,$K$5=2),W9-HLOOKUP($D$7,RLT!$J$1:$Q$10,7),IF(AND($H$5<=0.541,$H$5>=0.5,$K$5=2),W9-HLOOKUP($D$7,RLT!$J$1:$Q$10,4), W9)))) ),W9)) -> 0 | X18: =SUMPRODUCT(--(Q18:W18>0),Q18:W18) -> 0
F19: 1 | L19: =B19+D19+H19+K19 -> 0 | Q19: =IF(A9=9,0,IF(A8="",0,IF($N$4>1,HLOOKUP($P$3,RLT!$B$1:$H$7,6),0))) -> 0 | R19: =IF(B9=9,0,IF(B8="",0,IF($N$4>1,HLOOKUP($P$3,RLT!$B$1:$H$7,6),0))) -> 0 | S19: =IF(D9=9,0,IF(D8="",0,IF($N$4>1,HLOOKUP($P$3,RLT!$B$1:$H$7,6),0))) -> 0 | T19: =IF(F9=9,0,IF(F8="",0,IF($N$4>1,HLOOKUP($P$3,RLT!$B$1:$H$7,6),0))) -> 0 | U19: =IF(H9=9,0,IF(H8="",0,IF($N$4>1,HLOOKUP($P$3,RLT!$B$1:$H$7,6),0))) -> 0 | V19: =IF(J9=9,0,IF(J8="",0,IF($N$4>1,HLOOKUP($P$3,RLT!$B$1:$H$7,6),0))) -> 0 | W19: =IF(L9=9,0,IF(L8="",0,IF($N$4>1,HLOOKUP($P$3,RLT!$B$1:$H$7,6),0))) -> 0 | X19: =SUM(Q19:W19) -> 0
L20: =B20+D20+H20+K20 -> 0 | Q20: =IF(Q12=0, 0,IF(B11="",IF(OR(AND($H$5<=0.541,$K$5=1,$H$5>=0.5), AND($H$5<=0.375,$K$5=1)),0, IF($K$5=1,Q12-HLOOKUP($D$7,RLT!$J$1:$Q$10,4), IF(AND($H$5<=0.0833,$K$5=2), Q12-HLOOKUP($D$7,RLT!$J$1:$Q$10,4), IF(AND($H$5<=0.2916,$K$5=2),Q12-HLOOKUP($D$7,RLT!$J$1:$Q$10,7),IF(AND($H$5<=0.541,$H$5>=0.5,$K$5=2),Q12-HLOOKUP($D$7,RLT!$J$1:$Q$10,4), Q12)))) ),Q12)) -> 0 | R20: =IF(R12=0, 0,IF(D11="",IF(OR(AND($H$5<=0.541,$K$5=1,$H$5>=0.5), AND($H$5<=0.375,$K$5=1)),0, IF($K$5=1,R12-HLOOKUP($D$7,RLT!$J$1:$Q$10,4), IF(AND($H$5<=0.0833,$K$5=2), R12-HLOOKUP($D$7,RLT!$J$1:$Q$10,4), IF(AND($H$5<=0.2916,$K$5=2),R12-HLOOKUP($D$7,RLT!$J$1:$Q$10,7),IF(AND($H$5<=0.541,$H$5>=0.5,$K$5=2),R12-HLOOKUP($D$7,RLT!$J$1:$Q$10,4), R12)))) ),R12)) -> 0 | S20: =IF(S12=0, 0,IF(F11="",IF(OR(AND($H$5<=0.541,$K$5=1,$H$5>=0.5), AND($H$5<=0.375,$K$5=1)),0, IF($K$5=1,S12-HLOOKUP($D$7,RLT!$J$1:$Q$10,4), IF(AND($H$5<=0.0833,$K$5=2), S12-HLOOKUP($D$7,RLT!$J$1:$Q$10,4), IF(AND($H$5<=0.2916,$K$5=2),S12-HLOOKUP($D$7,RLT!$J$1:$Q$10,7),IF(AND($H$5<=0.541,$H$5>=0.5,$K$5=2),S12-HLOOKUP($D$7,RLT!$J$1:$Q$10,4), S12)))) ),S12)) -> 0 | T20: =IF(T12=0, 0,IF(H11="",IF(OR(AND($H$5<=0.541,$K$5=1,$H$5>=0.5), AND($H$5<=0.375,$K$5=1)),0, IF($K$5=1,T12-HLOOKUP($D$7,RLT!$J$1:$Q$10,4), IF(AND($H$5<=0.0833,$K$5=2), T12-HLOOKUP($D$7,RLT!$J$1:$Q$10,4), IF(AND($H$5<=0.2916,$K$5=2),T12-HLOOKUP($D$7,RLT!$J$1:$Q$10,7),IF(AND($H$5<=0.541,$H$5>=0.5,$K$5=2),T12-HLOOKUP($D$7,RLT!$J$1:$Q$10,4), T12)))) ),T12)) -> 0 | U20: =IF(U12=0, 0,IF(J11="",IF(OR(AND($H$5<=0.541,$K$5=1,$H$5>=0.5), AND($H$5<=0.375,$K$5=1)),0, IF($K$5=1,U12-HLOOKUP($D$7,RLT!$J$1:$Q$10,4), IF(AND($H$5<=0.0833,$K$5=2), U12-HLOOKUP($D$7,RLT!$J$1:$Q$10,4), IF(AND($H$5<=0.2916,$K$5=2),U12-HLOOKUP($D$7,RLT!$J$1:$Q$10,7),IF(AND($H$5<=0.541,$H$5>=0.5,$K$5=2),U12-HLOOKUP($D$7,RLT!$J$1:$Q$10,4), U12)))) ),U12)) -> 0 | V20: =IF(V12=0, 0,IF(L11="",IF(OR(AND($H$5<=0.541,$K$5=1,$H$5>=0.5), AND($H$5<=0.375,$K$5=1)),0, IF($K$5=1,V12-HLOOKUP($D$7,RLT!$J$1:$Q$10,4), IF(AND($H$5<=0.0833,$K$5=2), V12-HLOOKUP($D$7,RLT!$J$1:$Q$10,4), IF(AND($H$5<=0.2916,$K$5=2),V12-HLOOKUP($D$7,RLT!$J$1:$Q$10,7),IF(AND($H$5<=0.541,$H$5>=0.5,$K$5=2),V12-HLOOKUP($D$7,RLT!$J$1:$Q$10,4), V12)))) ),V12)) -> 0 | W20: =IF(W12=0, 0,IF(A14="",IF(OR(AND($H$5<=0.541,$K$5=1,$H$5>=0.5), AND($H$5<=0.375,$K$5=1)),0, IF($K$5=1,W12-HLOOKUP($D$7,RLT!$J$1:$Q$10,4), IF(AND($H$5<=0.0833,$K$5=2), W12-HLOOKUP($D$7,RLT!$J$1:$Q$10,4), IF(AND($H$5<=0.2916,$K$5=2),W12-HLOOKUP($D$7,RLT!$J$1:$Q$10,7),IF(AND($H$5<=0.541,$H$5>=0.5,$K$5=2),W12-HLOOKUP($D$7,RLT!$J$1:$Q$10,4), W12)))) ),W12)) -> 0 | X20: =SUMPRODUCT(--(Q20:W20>0),Q20:W20) -> 0
L21: 0 | Q21: =IF(A12=9,0,IF(A11="",0,IF($N$4>1,HLOOKUP($P$3,RLT!$B$1:$H$7,6),0))) -> 0 | R21: =IF(B12=9,0,IF(B11="",0,IF($N$4>1,HLOOKUP($P$3,RLT!$B$1:$H$7,6),0))) -> 0 | S21: =IF(D12=9,0,IF(D11="",0,IF($N$4>1,HLOOKUP($P$3,RLT!$B$1:$H$7,6),0))) -> 0 | T21: =IF(F12=9,0,IF(F11="",0,IF($N$4>1,HLOOKUP($P$3,RLT!$B$1:$H$7,6),0))) -> 0 | U21: =IF(H12=9,0,IF(H11="",0,IF($N$4>1,HLOOKUP($P$3,RLT!$B$1:$H$7,6),0))) -> 0 | V21: =IF(J12=9,0,IF(J11="",0,IF($N$4>1,HLOOKUP($P$3,RLT!$B$1:$H$7,6),0))) -> 0 | W21: =IF(L12=9,0,IF(L11="",0,IF($N$4>1,HLOOKUP($P$3,RLT!$B$1:$H$7,6),0))) -> 0 | X21: =SUM(Q21:W21) -> 0
L22: 0 | Q22: =IF(Q15=0, 0,IF(B14="",IF(OR(AND($H$5<=0.541,$K$5=1,$H$5>=0.5), AND($H$5<=0.375,$K$5=1)),0, IF($K$5=1,Q15-HLOOKUP($D$7,RLT!$J$1:$Q$10,4), IF(AND($H$5<=0.0833,$K$5=2), Q15-HLOOKUP($D$7,RLT!$J$1:$Q$10,4), IF(AND($H$5<=0.2916,$K$5=2),Q15-HLOOKUP($D$7,RLT!$J$1:$Q$10,7),IF(AND($H$5<=0.541,$H$5>=0.5,$K$5=2),Q15-HLOOKUP($D$7,RLT!$J$1:$Q$10,4), Q15)))) ),Q15)) -> 0 | R22: =IF(R15=0, 0,IF(D14="",IF(OR(AND($H$5<=0.541,$K$5=1,$H$5>=0.5), AND($H$5<=0.375,$K$5=1)),0, IF($K$5=1,R15-HLOOKUP($D$7,RLT!$J$1:$Q$10,4), IF(AND($H$5<=0.0833,$K$5=2), R15-HLOOKUP($D$7,RLT!$J$1:$Q$10,4), IF(AND($H$5<=0.2916,$K$5=2),R15-HLOOKUP($D$7,RLT!$J$1:$Q$10,7),IF(AND($H$5<=0.541,$H$5>=0.5,$K$5=2),R15-HLOOKUP($D$7,RLT!$J$1:$Q$10,4), R15)))) ),R15)) -> 0 | S22: =IF(S15=0, 0,IF(F14="",IF(OR(AND($H$5<=0.541,$K$5=1,$H$5>=0.5), AND($H$5<=0.375,$K$5=1)),0, IF($K$5=1,S15-HLOOKUP($D$7,RLT!$J$1:$Q$10,4), IF(AND($H$5<=0.0833,$K$5=2), S15-HLOOKUP($D$7,RLT!$J$1:$Q$10,4), IF(AND($H$5<=0.2916,$K$5=2),S15-HLOOKUP($D$7,RLT!$J$1:$Q$10,7),IF(AND($H$5<=0.541,$H$5>=0.5,$K$5=2),S15-HLOOKUP($D$7,RLT!$J$1:$Q$10,4), S15)))) ),S15)) -> 0 | T22: =IF(T15=0, 0,IF(H14="",IF(OR(AND($H$5<=0.541,$K$5=1,$H$5>=0.5), AND($H$5<=0.375,$K$5=1)),0, IF($K$5=1,T15-HLOOKUP($D$7,RLT!$J$1:$Q$10,4), IF(AND($H$5<=0.0833,$K$5=2), T15-HLOOKUP($D$7,RLT!$J$1:$Q$10,4), IF(AND($H$5<=0.2916,$K$5=2),T15-HLOOKUP($D$7,RLT!$J$1:$Q$10,7),IF(AND($H$5<=0.541,$H$5>=0.5,$K$5=2),T15-HLOOKUP($D$7,RLT!$J$1:$Q$10,4), T15)))) ),T15)) -> 0 | U22: =IF(U15=0, 0,IF(J14="",IF(OR(AND($H$5<=0.541,$K$5=1,$H$5>=0.5), AND($H$5<=0.375,$K$5=1)),0, IF($K$5=1,U15-HLOOKUP($D$7,RLT!$J$1:$Q$10,4), IF(AND($H$5<=0.0833,$K$5=2), U15-HLOOKUP($D$7,RLT!$J$1:$Q$10,4), IF(AND($H$5<=0.2916,$K$5=2),U15-HLOOKUP($D$7,RLT!$J$1:$Q$10,7),IF(AND($H$5<=0.541,$H$5>=0.5,$K$5=2),U15-HLOOKUP($D$7,RLT!$J$1:$Q$10,4), U15)))) ),U15)) -> 0 | V22: =IF(V15=0, 0,IF(L14="",IF(OR(AND($H$5<=0.541,$K$5=1,$H$5>=0.5), AND($H$5<=0.375,$K$5=1)),0, IF($K$5=1,V15-HLOOKUP($D$7,RLT!$J$1:$Q$10,4), IF(AND($H$5<=0.0833,$K$5=2), V15-HLOOKUP($D$7,RLT!$J$1:$Q$10,4), IF(AND($H$5<=0.2916,$K$5=2),V15-HLOOKUP($D$7,RLT!$J$1:$Q$10,7),IF(AND($H$5<=0.541,$H$5>=0.5,$K$5=2),V15-HLOOKUP($D$7,RLT!$J$1:$Q$10,4), V15)))) ),V15)) -> 0 | W22: =IF(W15=0,0,IF(OR(AND($H$5<=0.541,$K$5=1,$H$5>=0.5),AND($H$5<=0.375,$K$5=1)),0,IF($K$5=1,W15-HLOOKUP($D$7,RLT!$J$1:$Q$10,4),IF(AND($H$5<=0.0833,$K$5=2),W15-HLOOKUP($D$7,RLT!$J$1:$Q$10,4),IF(AND($H$5<=0.2916,$K$5=2),W15-HLOOKUP($D$7,RLT!$J$1:$Q$10,7),IF(AND($H$5<=0.541,$H$5>=0.5,$K$5=2),W15-HLOOKUP($D$7,RLT!$J$1:$Q$10,4),W15)))))) -> 0 | X22: =SUMPRODUCT(--(Q22:W22>0),Q22:W22) -> 0
L23: 0 | Q23: =IF(A15=9,0,IF(A14="",0,IF($N$4>1,HLOOKUP($P$3,RLT!$B$1:$H$7,6),0))) -> 0 | R23: =IF(B15=9,0,IF(B14="",0,IF($N$4>1,HLOOKUP($P$3,RLT!$B$1:$H$7,6),0))) -> 0 | S23: =IF(D15=9,0,IF(D14="",0,IF($N$4>1,HLOOKUP($P$3,RLT!$B$1:$H$7,6),0))) -> 0 | T23: =IF(F15=9,0,IF(F14="",0,IF($N$4>1,HLOOKUP($P$3,RLT!$B$1:$H$7,6),0))) -> 0 | U23: =IF(H15=9,0,IF(H14="",0,IF($N$4>1,HLOOKUP($P$3,RLT!$B$1:$H$7,6),0))) -> 0 | V23: =IF(J15=9,0,IF(J14="",0,IF($N$4>1,HLOOKUP($P$3,RLT!$B$1:$H$7,6),0))) -> 0 | W23: =IF(L15=9,0,IF(L14="",0,IF($N$4>1,HLOOKUP($P$3,RLT!$B$1:$H$7,6),0))) -> 0 | X23: =SUM(Q23:W23) -> 0
L24: 0 | X24: =SUM(X18:X23)+'Per Diem Multiple Destinations'!G3 -> 0
L25: 0
L26: 0
L27: 0
L28: 0
L29: 0
L30: 0
L31: 0
L32: 0
L33: 0
L34: 0
L35: 0
L36: 0
L37: 0
L38: 0
L39: 0
L40: 0
A41: Per Diem Meals | B41: =SUM(X18:X23)+'Per Diem Multiple Destinations'!G3 -> 0 | D41: Business Meals | F41: ='Business Meal Details'!G34 -> 0 | H41: Meals with no Overnight Stay | K41: ='Meals With No Overnight'!H17 -> 0 | L41: =B41+F41+K41 -> 0
A42: =IF(B2=10,CONCATENATE("Fill Out Mileage Log worksheet to Compute Mileage Reimbursement"," --- Reimbursement calculated as ",'Mileage Log'!F4," miles @ ",".14 permile"),IF($N$2=FALSE, CONCATENATE("Fill Out Mileage Log worksheet to Compute Mileage Reimbursement"," --- Reimbursement calculated as ",'Mileage Log'!F4," miles @ ",RLT!A16," per mile"), CONCATENATE("Fill Out Mileage Log worksheet to Compute Mileage Reimbursement"," --- Reimbursement calculated as ",'Mileage Log'!F4," miles @ ",".194 permile"))) -> Fill Out Mileage Log worksheet to Compute Mileage Reimbursement --- Reimbursement calculated as 0 miles @ 0.575 per mile | L42: =P5 -> 0
A43: TOTALS | B43: =SUM(B19:B41) -> 0 | D43: =SUM(D19:D41) -> 0 | H43: =SUM(H19:H41) -> 0 | K43: =SUM(K19:K41) -> 0 | L43: =SUM(L19:L42) -> 0
A44: TOTALS from Page 2
A45: TOTAL TRIP CHARGES | L45: =L43+L46+L47 -> 0
A46: Prepaid Transportation - Transportation paid via a Contract Agency or other non-reimburseable method | M46: =#REF! ->  | N46: <- Enter in Prepaid (Non-reimburseable expenses here)
A47: Registration Fees - Fees paid via Procard or other non-reimbursable method
A48: SUB -TOTAL (AMOUNT TO BE CHARGED TO KFS ACCOUNT(S) LISTED BELOW)** | L48: =L43 -> 0
A49: LESS TOTAL ADVANCE (Enter in Travel Advance if taken for this trip) | N49: <- Enter in Travel Advance here
A50: =IF(L50=0, "Amount Due/Refund", IF(L50<0, "Amount Due to University", "Amount of Refund to Traveler")) -> Amount Due/Refund | L50: =L48-L49 -> 0
A51: KFS ACCOUNTS | C51: OBJ CODE | D51: AMOUNT | F51: Total | G51: REMARKS
F52: =SUM(D52:D54) -> 0
A55: I CERTIFY THAT THE ABOVE IS A TRUE STATEMENT, THAT THE EXPENSES CLAIMED WERE INCURRED BY ME ON OFFICIAL UNIVERSITY BUSINESS ON THE DATES SHOWN AND ALL EXPENSES CLAIMED HAVE NOT AND WILL NOT BE SUBMITTED FOR REIMBURSMENT TO THE UCONN FOUNDATION OR ANY OTHER THIRD PARTY. I FURTHER CERTIFY THAT I MAINTAIN AUTOMOBILE INSURANCE IN THE AMOUNT OF $50,000/$100,000 IF USING MY PERSONAL VEHICLE FOR BUSINESS RELATED PURPOSES. THIS IS A FINAL SETTLEMENT OF ALL EXPENSES RELATED TO THE TRAVEL DATES ABOVE.
A56: Traveler's Signature: | H56: Date:
A57: Authorizing Name: | G57: Signature | K57: Date:

Sheet Per Diem Multiple Destinations
A1: Multiple Destination - Per Diem Page
A2: Traveler: | B2: =IF('Travel Reimbursement'!B1="","",'Travel Reimbursement'!B1) ->  | D2: Department: | E2: =IF('Travel Reimbursement'!H1="","",'Travel Reimbursement'!H1) ->  | F2: U-box: | G2: =IF('Travel Reimbursement'!L1="","",'Travel Reimbursement'!L1) -> 
A3: Affiliation: | B3: =VLOOKUP('Travel Reimbursement'!$B$2,intake!E2:F11,2) -> SELECT AFFILIATION | D3: TA Number: | E3: =IF('Travel Reimbursement'!H2="","",'Travel Reimbursement'!H2) ->  | F3: Subtotal: | G3: =SUM(G5,G13,G21, G29,G37,G45) -> 0
A5: Per Diem #1 | C5: Location: | D5: here | F5: Location 1 Total | G5: =SUM(A11:G11) -> 0
A6: Select Rates: | B6: 1 | D6: Date | F6: Time
A7: Foreign Rates: | C7: Depart: | D7: =IF('Travel Reimbursement'!B4="","",'Travel Reimbursement'!B4) ->  | F7: =IF('Travel Reimbursement'!B5="","",'Travel Reimbursement'!B5) ->  | G7: =IF('Travel Reimbursement'!F5="","1",'Travel Reimbursement'!F5) -> 1
C8: Return: | G8: 2 | I8: =IF(B6=8,2,1) -> 1 | J8: =IF(B6=8,1,0) -> 0
A9: =IF(D7 ="", "", D7) ->  | B9: =IF(A9="","",(IF(A9+1<=$D$8,A9+1,""))) ->  | I9: =IF(VLOOKUP(A10,RLT!$I$3:$X$14,$B$6+$I8)="None",0,IF(A9="",0,VLOOKUP(A10,RLT!$I$3:$X$14,$B$6+$I8))) -> 0 | J9: =IF(VLOOKUP(B10,RLT!$I$3:$X$14,$B$6+$I8)="None",0,IF(B9="",0,VLOOKUP(B10,RLT!$I$3:$X$14,$B$6+$I8))) -> 0 | K9: =IF(VLOOKUP(C10,RLT!$I$3:$X$14,$B$6+$I8)="None",0,IF(C9="",0,VLOOKUP(C10,RLT!$I$3:$X$14,$B$6+$I8))) -> 0 | L9: =IF(VLOOKUP(D10,RLT!$I$3:$X$14,$B$6+$I8)="None",0,IF(D9="",0,VLOOKUP(D10,RLT!$I$3:$X$14,$B$6+$I8))) -> 0 | M9: =IF(VLOOKUP(E10,RLT!$I$3:$X$14,$B$6+$I8)="None",0,IF(E9="",0,VLOOKUP(E10,RLT!$I$3:$X$14,$B$6+$I8))) -> 0 | N9: =IF(VLOOKUP(F10,RLT!$I$3:$X$14,$B$6+$I8)="None",0,IF(F9="",0,VLOOKUP(F10,RLT!$I$3:$X$14,$B$6+$I8))) -> 0 | O9: =IF(VLOOKUP(G10,RLT!$I$3:$X$14,$B$6+$I8)="None",0,IF(G9="",0,VLOOKUP(G10,RLT!$I$3:$X$14,$B$6+$I8))) -> 0 | R9: M&IE Foreign Rate | T9: Breakfast | U9: Lunch | V9: Dinner | W9: IE
A10: 1 | B10: 1 | C10: 1 | D10: 1 | E10: 1 | F10: 1 | G10: 1 | I10: =IF(I9=0, 0, IF($D7="",0, IF(AND($F7<0.29166,$G7=1),I9,IF(AND($F7<0.45833,$G7=1),I9-HLOOKUP($B6+$J8,RLT!$J$1:$X$10,9),IF(AND($F7>=0.5,$F7<=0.541,$G7=1),I9,IF($G7=1,I9-HLOOKUP($B6+$J8,RLT!$J$1:$X$10,6),IF(AND($F7>=0.5,$F7<=0.541,$G7=2),I9-HLOOKUP($B6+$J8,RLT!$J$1:$X$10,6),IF(AND($F7<0.20833,$G7=2),I9-HLOOKUP($B6+$J8,RLT!$J$1:$X$10,6),0)))))))) -> 0 | J10: =IF(J9=0, 0,IF(C9="",IF(OR(AND($F8<=0.541,$G8=1,$F8>=0.5), AND($F8<=0.375,$G8=1)),0, IF($G8=1,J9-HLOOKUP($B6+$J8,RLT!$J$1:$X$10,4), IF(AND($F8<=0.0833,$G8=2), J9-HLOOKUP($B6+$J8,RLT!$J$1:$X$10,4), IF(AND($F8<=0.2916,$G8=2),J9-HLOOKUP($B6+$J8,RLT!$J$1:$X$10,7),IF(AND($F8<=0.541,$F8>=0.5,$G8=2),J9-HLOOKUP($B6+$J8,RLT!$J$1:$X$10,4), J9)))) ),J9)) -> 0 | K10: =IF(K9=0, 0,IF(D9="",IF(OR(AND($F8<=0.541,$G8=1,$F8>=0.5), AND($F8<=0.375,$G8=1)),0, IF($G8=1,K9-HLOOKUP($B6+$J8,RLT!$J$1:$X$10,4), IF(AND($F8<=0.0833,$G8=2), K9-HLOOKUP($B6+$J8,RLT!$J$1:$X$10,4), IF(AND($F8<=0.2916,$G8=2),K9-HLOOKUP($B6+$J8,RLT!$J$1:$X$10,7),IF(AND($F8<=0.541,$F8>=0.5,$G8=2),K9-HLOOKUP($B6+$J8,RLT!$J$1:$X$10,4), K9)))) ),K9)) -> 0 | L10: =IF(L9=0, 0,IF(E9="",IF(OR(AND($F8<=0.541,$G8=1,$F8>=0.5), AND($F8<=0.375,$G8=1)),0, IF($G8=1,L9-HLOOKUP($B6+$J8,RLT!$J$1:$X$10,4), IF(AND($F8<=0.0833,$G8=2), L9-HLOOKUP($B6+$J8,RLT!$J$1:$X$10,4), IF(AND($F8<=0.2916,$G8=2),L9-HLOOKUP($B6+$J8,RLT!$J$1:$X$10,7),IF(AND($F8<=0.541,$F8>=0.5,$G8=2),L9-HLOOKUP($B6+$J8,RLT!$J$1:$X$10,4), L9)))) ),L9)) -> 0 | M10: =IF(M9=0, 0,IF(F9="",IF(OR(AND($F8<=0.541,$G8=1,$F8>=0.5), AND($F8<=0.375,$G8=1)),0, IF($G8=1,M9-HLOOKUP($B6+$J8,RLT!$J$1:$X$10,4), IF(AND($F8<=0.0833,$G8=2), M9-HLOOKUP($B6+$J8,RLT!$J$1:$X$10,4), IF(AND($F8<=0.2916,$G8=2),M9-HLOOKUP($B6+$J8,RLT!$J$1:$X$10,7),IF(AND($F8<=0.541,$F8>=0.5,$G8=2),M9-HLOOKUP($B6+$J8,RLT!$J$1:$X$10,4), M9)))) ),M9)) -> 0 | N10: =IF(N9=0, 0,IF(G9="",IF(OR(AND($F8<=0.541,$G8=1,$F8>=0.5), AND($F8<=0.375,$G8=1)),0, IF($G8=1,N9-HLOOKUP($B6+$J8,RLT!$J$1:$X$10,4), IF(AND($F8<=0.0833,$G8=2), N9-HLOOKUP($B6+$J8,RLT!$J$1:$X$10,4), IF(AND($F8<=0.2916,$G8=2),N9-HLOOKUP($B6+$J8,RLT!$J$1:$X$10,7),IF(AND($F8<=0.541,$F8>=0.5,$G8=2),N9-HLOOKUP($B6+$J8,RLT!$J$1:$X$10,4), N9)))) ),N9)) -> 0 | O10: =IF(O9=0, 0,IF(H9="",IF(OR(AND($F8<=0.541,$G8=1,$F8>=0.5), AND($F8<=0.375,$G8=1)),0, IF($G8=1,O9-HLOOKUP($B6+$J8,RLT!$J$1:$X$10,4), IF(AND($F8<=0.0833,$G8=2), O9-HLOOKUP($B6+$J8,RLT!$J$1:$X$10,4), IF(AND($F8<=0.2916,$G8=2),O9-HLOOKUP($B6+$J8,RLT!$J$1:$X$10,7),IF(AND($F8<=0.541,$F8>=0.5,$G8=2),O9-HLOOKUP($B6+$J8,RLT!$J$1:$X$10,4), O9)))) ),O9)) -> 0 | P10: =SUMPRODUCT(--(I10:O10>0),I10:O10) -> 0 | R10: =$B$7 -> 0 | T10: =IF($B$7=0, 0, VLOOKUP($B$7,RLT!$A$26:$E$294,2)) -> 0 | U10: =IF($B$7=0, 0, VLOOKUP($B$7,RLT!$A$26:$E$294,3)) -> 0 | V10: =IF($B$7=0, 0, VLOOKUP($B$7,RLT!$A$26:$E$294,4)) -> 0 | W10: =IF($B$7=0, 0, VLOOKUP($B$7,RLT!$A$26:$E$294,5)) -> 0
A11: =SUM(I10:I11) -> 0 | B11: 0 | C11: 0 | D11: 0 | E11: 0 | F11: 0 | G11: 0 | I11: =IF(A10=9,0,IF(A9="",0,IF(AND($B$6>1,$B$6<8),HLOOKUP($B$6,RLT!$B$1:$H$7,6),IF($B$6=8,$W$10,0)))) -> 0 | J11: =IF(B10=9,0,IF(B9="",0,IF(AND($B$6>1,$B$6<8),HLOOKUP($B$6,RLT!$B$1:$H$7,6),IF($B$6=8,$W$10,0)))) -> 0 | K11: =IF(C10=9,0,IF(C9="",0,IF(AND($B$6>1,$B$6<8),HLOOKUP($B$6,RLT!$B$1:$H$7,6),IF($B$6=8,$W$10,0)))) -> 0 | L11: =IF(D10=9,0,IF(D9="",0,IF(AND($B$6>1,$B$6<8),HLOOKUP($B$6,RLT!$B$1:$H$7,6),IF($B$6=8,$W$10,0)))) -> 0 | M11: =IF(E10=9,0,IF(E9="",0,IF(AND($B$6>1,$B$6<8),HLOOKUP($B$6,RLT!$B$1:$H$7,6),IF($B$6=8,$W$10,0)))) -> 0 | N11: =IF(F10=9,0,IF(F9="",0,IF(AND($B$6>1,$B$6<8),HLOOKUP($B$6,RLT!$B$1:$H$7,6),IF($B$6=8,$W$10,0)))) -> 0 | O11: =IF(G10=9,0,IF(G9="",0,IF(AND($B$6>1,$B$6<8),HLOOKUP($B$6,RLT!$B$1:$H$7,6),IF($B$6=8,$W$10,0)))) -> 0 | P11: =SUM(I11:O11) -> 0
A13: Per Diem #2 | C13: Location: | F13: Location 2 Total | G13: =SUM(A19:G19) -> 0
A14: Select Rates: | B14: 1 | D14: Date | F14: Time
A15: Foreign Rates: | C15: Depart: | G15: 1
C16: Return: | G16: 2 | I16: =IF(B14=8,3,1) -> 1 | J16: =IF(B14=8,2,0) -> 0
A17: =IF(D15 ="", "", D15) ->  | B17: =IF(A17="","",(IF(A17+1<=$D$16,A17+1,""))) ->  | I17: =IF(VLOOKUP(A18,RLT!$I$3:$X$14,$B14+$I16)="None",0,IF(A17="",0,VLOOKUP(A18,RLT!$I$3:$X$14,$B14+$I16))) -> 0 | J17: =IF(VLOOKUP(B18,RLT!$I$3:$X$14,$B14+$I16)="None",0,IF(B17="",0,VLOOKUP(B18,RLT!$I$3:$X$14,$B14+$I16))) -> 0 | K17: =IF(VLOOKUP(C18,RLT!$I$3:$X$14,$B14+$I16)="None",0,IF(C17="",0,VLOOKUP(C18,RLT!$I$3:$X$14,$B14+$I16))) -> 0 | L17: =IF(VLOOKUP(D18,RLT!$I$3:$X$14,$B14+$I16)="None",0,IF(D17="",0,VLOOKUP(D18,RLT!$I$3:$X$14,$B14+$I16))) -> 0 | M17: =IF(VLOOKUP(E18,RLT!$I$3:$X$14,$B14+$I16)="None",0,IF(E17="",0,VLOOKUP(E18,RLT!$I$3:$X$14,$B14+$I16))) -> 0 | N17: =IF(VLOOKUP(F18,RLT!$I$3:$X$14,$B14+$I16)="None",0,IF(F17="",0,VLOOKUP(F18,RLT!$I$3:$X$14,$B14+$I16))) -> 0 | O17: =IF(VLOOKUP(G18,RLT!$I$3:$X$14,$B14+$I16)="None",0,IF(G17="",0,VLOOKUP(G18,RLT!$I$3:$X$14,$B14+$I16))) -> 0 | R17: M&IE Foreign Rate | T17: Breakfast | U17: Lunch | V17: Dinner | W17: IE
A18: 1 | B18: 1 | C18: 1 | D18: 1 | E18: 1 | F18: 1 | G18: 1 | I18: =IF(I17=0, 0, IF($D15="",0, IF(AND($F15<0.29166,$G15=1),I17,IF(AND($F15<0.45833,$G15=1),I17-HLOOKUP($B14+$J16,RLT!$J$1:$X$10,9),IF(AND($F15>=0.5,$F15<=0.541,$G15=1),I17,IF($G15=1,I17-HLOOKUP($B14+$J16,RLT!$J$1:$X$10,6),IF(AND($F15>=0.5,$F15<=0.541,$G15=2),I17-HLOOKUP($B14+$J16,RLT!$J$1:$X$10,6),IF(AND($F15<0.20833,$G15=2),I17-HLOOKUP($B14+$J16,RLT!$J$1:$X$10,6),0)))))))) -> 0 | J18: =IF(J17=0, 0,IF(C17="",IF(OR(AND($F16<=0.541,$G16=1,$F16>=0.5), AND($F16<=0.375,$G16=1)),0, IF($G16=1,J17-HLOOKUP($B14+$J16,RLT!$J$1:$X$10,4), IF(AND($F16<=0.0833,$G16=2), J17-HLOOKUP($B14+$J16,RLT!$J$1:$X$10,4), IF(AND($F16<=0.2916,$G16=2),J17-HLOOKUP($B14+$J16,RLT!$J$1:$X$10,7),IF(AND($F16<=0.541,$F16>=0.5,$G16=2),J17-HLOOKUP($B14+$J16,RLT!$J$1:$X$10,4), J17)))) ),J17)) -> 0 | K18: =IF(K17=0, 0,IF(D17="",IF(OR(AND($F16<=0.541,$G16=1,$F16>=0.5), AND($F16<=0.375,$G16=1)),0, IF($G16=1,K17-HLOOKUP($B14+$J16,RLT!$J$1:$X$10,4), IF(AND($F16<=0.0833,$G16=2), K17-HLOOKUP($B14+$J16,RLT!$J$1:$X$10,4), IF(AND($F16<=0.2916,$G16=2),K17-HLOOKUP($B14+$J16,RLT!$J$1:$X$10,7),IF(AND($F16<=0.541,$F16>=0.5,$G16=2),K17-HLOOKUP($B14+$J16,RLT!$J$1:$X$10,4), K17)))) ),K17)) -> 0 | L18: =IF(L17=0, 0,IF(E17="",IF(OR(AND($F16<=0.541,$G16=1,$F16>=0.5), AND($F16<=0.375,$G16=1)),0, IF($G16=1,L17-HLOOKUP($B14+$J16,RLT!$J$1:$X$10,4), IF(AND($F16<=0.0833,$G16=2), L17-HLOOKUP($B14+$J16,RLT!$J$1:$X$10,4), IF(AND($F16<=0.2916,$G16=2),L17-HLOOKUP($B14+$J16,RLT!$J$1:$X$10,7),IF(AND($F16<=0.541,$F16>=0.5,$G16=2),L17-HLOOKUP($B14+$J16,RLT!$J$1:$X$10,4), L17)))) ),L17)) -> 0 | M18: =IF(M17=0, 0,IF(F17="",IF(OR(AND($F16<=0.541,$G16=1,$F16>=0.5), AND($F16<=0.375,$G16=1)),0, IF($G16=1,M17-HLOOKUP($B14+$J16,RLT!$J$1:$X$10,4), IF(AND($F16<=0.0833,$G16=2), M17-HLOOKUP($B14+$J16,RLT!$J$1:$X$10,4), IF(AND($F16<=0.2916,$G16=2),M17-HLOOKUP($B14+$J16,RLT!$J$1:$X$10,7),IF(AND($F16<=0.541,$F16>=0.5,$G16=2),M17-HLOOKUP($B14+$J16,RLT!$J$1:$X$10,4), M17)))) ),M17)) -> 0 | N18: =IF(N17=0, 0,IF(G17="",IF(OR(AND($F16<=0.541,$G16=1,$F16>=0.5), AND($F16<=0.375,$G16=1)),0, IF($G16=1,N17-HLOOKUP($B14+$J16,RLT!$J$1:$X$10,4), IF(AND($F16<=0.0833,$G16=2), N17-HLOOKUP($B14+$J16,RLT!$J$1:$X$10,4), IF(AND($F16<=0.2916,$G16=2),N17-HLOOKUP($B14+$J16,RLT!$J$1:$X$10,7),IF(AND($F16<=0.541,$F16>=0.5,$G16=2),N17-HLOOKUP($B14+$J16,RLT!$J$1:$X$10,4), N17)))) ),N17)) -> 0 | O18: =IF(O17=0, 0,IF(H17="",IF(OR(AND($F16<=0.541,$G16=1,$F16>=0.5), AND($F16<=0.375,$G16=1)),0, IF($G16=1,O17-HLOOKUP($B14+$J16,RLT!$J$1:$X$10,4), IF(AND($F16<=0.0833,$G16=2), O17-HLOOKUP($B14+$J16,RLT!$J$1:$X$10,4), IF(AND($F16<=0.2916,$G16=2),O17-HLOOKUP($B14+$J16,RLT!$J$1:$X$10,7),IF(AND($F16<=0.541,$F16>=0.5,$G16=2),O17-HLOOKUP($B14+$J16,RLT!$J$1:$X$10,4), O17)))) ),O17)) -> 0 | P18: =SUMPRODUCT(--(I18:O18>0),I18:O18) -> 0 | R18: =$B15 -> 0 | T18: =IF($B15=0, 0, VLOOKUP($B15,RLT!$A$26:$E$294,2)) -> 0 | U18: =IF($B15=0, 0, VLOOKUP($B15,RLT!$A$26:$E$294,3)) -> 0 | V18: =IF($B15=0, 0, VLOOKUP($B15,RLT!$A$26:$E$294,4)) -> 0 | W18: =IF($B15=0, 0, VLOOKUP($B15,RLT!$A$26:$E$294,5)) -> 0
A19: =SUM(I18:I19) -> 0 | B19: 0 | C19: 0 | D19: 0 | E19: 0 | F19: 0 | G19: 0 | I19: =IF(A18=9,0,IF(A17="",0,IF(AND($B14>1,$B14<8),HLOOKUP($B14,RLT!$B$1:$H$7,6),IF($B14=8,$W18,0)))) -> 0 | J19: =IF(B18=9,0,IF(B17="",0,IF(AND($B14>1,$B14<8),HLOOKUP($B14,RLT!$B$1:$H$7,6),IF($B14=8,$W18,0)))) -> 0 | K19: =IF(C18=9,0,IF(C17="",0,IF(AND($B14>1,$B14<8),HLOOKUP($B14,RLT!$B$1:$H$7,6),IF($B14=8,$W18,0)))) -> 0 | L19: =IF(D18=9,0,IF(D17="",0,IF(AND($B14>1,$B14<8),HLOOKUP($B14,RLT!$B$1:$H$7,6),IF($B14=8,$W18,0)))) -> 0 | M19: =IF(E18=9,0,IF(E17="",0,IF(AND($B14>1,$B14<8),HLOOKUP($B14,RLT!$B$1:$H$7,6),IF($B14=8,$W18,0)))) -> 0 | N19: =IF(F18=9,0,IF(F17="",0,IF(AND($B14>1,$B14<8),HLOOKUP($B14,RLT!$B$1:$H$7,6),IF($B14=8,$W18,0)))) -> 0 | O19: =IF(G18=9,0,IF(G17="",0,IF(AND($B14>1,$B14<8),HLOOKUP($B14,RLT!$B$1:$H$7,6),IF($B14=8,$W18,0)))) -> 0 | P19: =SUM(I19:O19) -> 0
A21: Per Diem #3 | C21: Location: | F21: Location 3 Total | G21: =SUM(A27:G27) -> 0
A22: Select Rates: | B22: 1 | D22: Date | F22: Time
A23: Foreign Rates: | C23: Depart: | G23: 1
C24: Return: | G24: 2 | I24: =IF(B22=8,4,1) -> 1 | J24: =IF(B22=8,3,0) -> 0
A25: =IF(D23 ="", "", D23) ->  | B25: =IF(A25="","",(IF(A25+1<=$D$24,A25+1,""))) ->  | I25: =IF(VLOOKUP(A26,RLT!$I$3:$X$14,$B22+$I24)="None",0,IF(A25="",0,VLOOKUP(A26,RLT!$I$3:$X$14,$B22+$I24))) -> 0 | J25: =IF(VLOOKUP(B26,RLT!$I$3:$X$14,$B22+$I24)="None",0,IF(B25="",0,VLOOKUP(B26,RLT!$I$3:$X$14,$B22+$I24))) -> 0 | K25: =IF(VLOOKUP(C26,RLT!$I$3:$X$14,$B22+$I24)="None",0,IF(C25="",0,VLOOKUP(C26,RLT!$I$3:$X$14,$B22+$I24))) -> 0 | L25: =IF(VLOOKUP(D26,RLT!$I$3:$X$14,$B22+$I24)="None",0,IF(D25="",0,VLOOKUP(D26,RLT!$I$3:$X$14,$B22+$I24))) -> 0 | M25: =IF(VLOOKUP(E26,RLT!$I$3:$X$14,$B22+$I24)="None",0,IF(E25="",0,VLOOKUP(E26,RLT!$I$3:$X$14,$B22+$I24))) -> 0 | N25: =IF(VLOOKUP(F26,RLT!$I$3:$X$14,$B22+$I24)="None",0,IF(F25="",0,VLOOKUP(F26,RLT!$I$3:$X$14,$B22+$I24))) -> 0 | O25: =IF(VLOOKUP(G26,RLT!$I$3:$X$14,$B22+$I24)="None",0,IF(G25="",0,VLOOKUP(G26,RLT!$I$3:$X$14,$B22+$I24))) -> 0 | R25: M&IE Foreign Rate | T25: Breakfast | U25: Lunch | V25: Dinner | W25: IE
A26: 1 | B26: 1 | C26: 1 | D26: 1 | E26: 1 | F26: 1 | G26: 1 | I26: =IF(I25=0, 0, IF($D23="",0, IF(AND($F23<0.29166,$G23=1),I25,IF(AND($F23<0.45833,$G23=1),I25-HLOOKUP($B22+$J24,RLT!$J$1:$X$10,9),IF(AND($F23>=0.5,$F23<=0.541,$G23=1),I25,IF($G23=1,I25-HLOOKUP($B22+$J24,RLT!$J$1:$X$10,6),IF(AND($F23>=0.5,$F23<=0.541,$G23=2),I25-HLOOKUP($B22+$J24,RLT!$J$1:$X$10,6),IF(AND($F23<0.20833,$G23=2),I25-HLOOKUP($B22+$J24,RLT!$J$1:$X$10,6),0)))))))) -> 0 | J26: =IF(J25=0, 0,IF(C25="",IF(OR(AND($F24<=0.541,$G24=1,$F24>=0.5), AND($F24<=0.375,$G24=1)),0, IF($G24=1,J25-HLOOKUP($B22+$J24,RLT!$J$1:$X$10,4), IF(AND($F24<=0.0833,$G24=2), J25-HLOOKUP($B22+$J24,RLT!$J$1:$X$10,4), IF(AND($F24<=0.2916,$G24=2),J25-HLOOKUP($B22+$J24,RLT!$J$1:$X$10,7),IF(AND($F24<=0.541,$F24>=0.5,$G24=2),J25-HLOOKUP($B22+$J24,RLT!$J$1:$X$10,4), J25)))) ),J25)) -> 0 | K26: =IF(K25=0, 0,IF(D25="",IF(OR(AND($F24<=0.541,$G24=1,$F24>=0.5), AND($F24<=0.375,$G24=1)),0, IF($G24=1,K25-HLOOKUP($B22+$J24,RLT!$J$1:$X$10,4), IF(AND($F24<=0.0833,$G24=2), K25-HLOOKUP($B22+$J24,RLT!$J$1:$X$10,4), IF(AND($F24<=0.2916,$G24=2),K25-HLOOKUP($B22+$J24,RLT!$J$1:$X$10,7),IF(AND($F24<=0.541,$F24>=0.5,$G24=2),K25-HLOOKUP($B22+$J24,RLT!$J$1:$X$10,4), K25)))) ),K25)) -> 0 | L26: =IF(L25=0, 0,IF(E25="",IF(OR(AND($F24<=0.541,$G24=1,$F24>=0.5), AND($F24<=0.375,$G24=1)),0, IF($G24=1,L25-HLOOKUP($B22+$J24,RLT!$J$1:$X$10,4), IF(AND($F24<=0.0833,$G24=2), L25-HLOOKUP($B22+$J24,RLT!$J$1:$X$10,4), IF(AND($F24<=0.2916,$G24=2),L25-HLOOKUP($B22+$J24,RLT!$J$1:$X$10,7),IF(AND($F24<=0.541,$F24>=0.5,$G24=2),L25-HLOOKUP($B22+$J24,RLT!$J$1:$X$10,4), L25)))) ),L25)) -> 0 | M26: =IF(M25=0, 0,IF(F25="",IF(OR(AND($F24<=0.541,$G24=1,$F24>=0.5), AND($F24<=0.375,$G24=1)),0, IF($G24=1,M25-HLOOKUP($B22+$J24,RLT!$J$1:$X$10,4), IF(AND($F24<=0.0833,$G24=2), M25-HLOOKUP($B22+$J24,RLT!$J$1:$X$10,4), IF(AND($F24<=0.2916,$G24=2),M25-HLOOKUP($B22+$J24,RLT!$J$1:$X$10,7),IF(AND($F24<=0.541,$F24>=0.5,$G24=2),M25-HLOOKUP($B22+$J24,RLT!$J$1:$X$10,4), M25)))) ),M25)) -> 0 | N26: =IF(N25=0, 0,IF(G25="",IF(OR(AND($F24<=0.541,$G24=1,$F24>=0.5), AND($F24<=0.375,$G24=1)),0, IF($G24=1,N25-HLOOKUP($B22+$J24,RLT!$J$1:$X$10,4), IF(AND($F24<=0.0833,$G24=2), N25-HLOOKUP($B22+$J24,RLT!$J$1:$X$10,4), IF(AND($F24<=0.2916,$G24=2),N25-HLOOKUP($B22+$J24,RLT!$J$1:$X$10,7),IF(AND($F24<=0.541,$F24>=0.5,$G24=2),N25-HLOOKUP($B22+$J24,RLT!$J$1:$X$10,4), N25)))) ),N25)) -> 0 | O26: =IF(O25=0, 0,IF(H25="",IF(OR(AND($F24<=0.541,$G24=1,$F24>=0.5), AND($F24<=0.375,$G24=1)),0, IF($G24=1,O25-HLOOKUP($B22+$J24,RLT!$J$1:$X$10,4), IF(AND($F24<=0.0833,$G24=2), O25-HLOOKUP($B22+$J24,RLT!$J$1:$X$10,4), IF(AND($F24<=0.2916,$G24=2),O25-HLOOKUP($B22+$J24,RLT!$J$1:$X$10,7),IF(AND($F24<=0.541,$F24>=0.5,$G24=2),O25-HLOOKUP($B22+$J24,RLT!$J$1:$X$10,4), O25)))) ),O25)) -> 0 | P26: =SUMPRODUCT(--(I26:O26>0),I26:O26) -> 0 | R26: =$B23 -> 0 | T26: =IF($B23=0, 0, VLOOKUP($B23,RLT!$A$26:$E$294,2)) -> 0 | U26: =IF($B23=0, 0, VLOOKUP($B23,RLT!$A$26:$E$294,3)) -> 0 | V26: =IF($B23=0, 0, VLOOKUP($B23,RLT!$A$26:$E$294,4)) -> 0 | W26: =IF($B23=0, 0, VLOOKUP($B23,RLT!$A$26:$E$294,5)) -> 0
A27: =SUM(I26:I27) -> 0 | B27: 0 | C27: 0 | D27: 0 | E27: 0 | F27: 0 | G27: 0 | I27: =IF(A26=9,0,IF(A25="",0,IF(AND($B22>1,$B22<8),HLOOKUP($B22,RLT!$B$1:$H$7,6),IF($B22=8,$W26,0)))) -> 0 | J27: =IF(B26=9,0,IF(B25="",0,IF(AND($B22>1,$B22<8),HLOOKUP($B22,RLT!$B$1:$H$7,6),IF($B22=8,$W26,0)))) -> 0 | K27: =IF(C26=9,0,IF(C25="",0,IF(AND($B22>1,$B22<8),HLOOKUP($B22,RLT!$B$1:$H$7,6),IF($B22=8,$W26,0)))) -> 0 | L27: =IF(D26=9,0,IF(D25="",0,IF(AND($B22>1,$B22<8),HLOOKUP($B22,RLT!$B$1:$H$7,6),IF($B22=8,$W26,0)))) -> 0 | M27: =IF(E26=9,0,IF(E25="",0,IF(AND($B22>1,$B22<8),HLOOKUP($B22,RLT!$B$1:$H$7,6),IF($B22=8,$W26,0)))) -> 0 | N27: =IF(F26=9,0,IF(F25="",0,IF(AND($B22>1,$B22<8),HLOOKUP($B22,RLT!$B$1:$H$7,6),IF($B22=8,$W26,0)))) -> 0 | O27: =IF(G26=9,0,IF(G25="",0,IF(AND($B22>1,$B22<8),HLOOKUP($B22,RLT!$B$1:$H$7,6),IF($B22=8,$W26,0)))) -> 0 | P27: =SUM(I27:O27) -> 0
A29: Per Diem #4 | C29: Location: | F29: Location 4 Total | G29: =SUM(A35:G35) -> 0
A30: Select Rates: | B30: 1 | D30: Date | F30: Time
A31: Foreign Rates: | C31: Depart: | G31: 1
C32: Return: | G32: 1 | I32: =IF(B30=8,5,1) -> 1 | J32: =IF(B30=8,4,0) -> 0
A33: =IF(D31 ="", "", D31) ->  | B33: =IF(A33="","",(IF(A33+1<=$D$32,A33+1,""))) ->  | I33: =IF(VLOOKUP(A34,RLT!$I$3:$X$14,$B30+$I32)="None",0,IF(A33="",0,VLOOKUP(A34,RLT!$I$3:$X$14,$B30+$I32))) -> 0 | J33: =IF(VLOOKUP(B34,RLT!$I$3:$X$14,$B30+$I32)="None",0,IF(B33="",0,VLOOKUP(B34,RLT!$I$3:$X$14,$B30+$I32))) -> 0 | K33: =IF(VLOOKUP(C34,RLT!$I$3:$X$14,$B30+$I32)="None",0,IF(C33="",0,VLOOKUP(C34,RLT!$I$3:$X$14,$B30+$I32))) -> 0 | L33: =IF(VLOOKUP(D34,RLT!$I$3:$X$14,$B30+$I32)="None",0,IF(D33="",0,VLOOKUP(D34,RLT!$I$3:$X$14,$B30+$I32))) -> 0 | M33: =IF(VLOOKUP(E34,RLT!$I$3:$X$14,$B30+$I32)="None",0,IF(E33="",0,VLOOKUP(E34,RLT!$I$3:$X$14,$B30+$I32))) -> 0 | N33: =IF(VLOOKUP(F34,RLT!$I$3:$X$14,$B30+$I32)="None",0,IF(F33="",0,VLOOKUP(F34,RLT!$I$3:$X$14,$B30+$I32))) -> 0 | O33: =IF(VLOOKUP(G34,RLT!$I$3:$X$14,$B30+$I32)="None",0,IF(G33="",0,VLOOKUP(G34,RLT!$I$3:$X$14,$B30+$I32))) -> 0 | R33: M&IE Foreign Rate | T33: Breakfast | U33: Lunch | V33: Dinner | W33: IE
A34: 1 | B34: 1 | C34: 1 | D34: 1 | E34: 1 | F34: 1 | G34: 1 | I34: =IF(I33=0, 0, IF($D31="",0, IF(AND($F31<0.29166,$G31=1),I33,IF(AND($F31<0.45833,$G31=1),I33-HLOOKUP($B30+$J32,RLT!$J$1:$X$10,9),IF(AND($F31>=0.5,$F31<=0.541,$G31=1),I33,IF($G31=1,I33-HLOOKUP($B30+$J32,RLT!$J$1:$X$10,6),IF(AND($F31>=0.5,$F31<=0.541,$G31=2),I33-HLOOKUP($B30+$J32,RLT!$J$1:$X$10,6),IF(AND($F31<0.20833,$G31=2),I33-HLOOKUP($B30+$J32,RLT!$J$1:$X$10,6),0)))))))) -> 0 | J34: =IF(J33=0, 0,IF(C33="",IF(OR(AND($F32<=0.541,$G32=1,$F32>=0.5), AND($F32<=0.375,$G32=1)),0, IF($G32=1,J33-HLOOKUP($B30+$J32,RLT!$J$1:$X$10,4), IF(AND($F32<=0.0833,$G32=2), J33-HLOOKUP($B30+$J32,RLT!$J$1:$X$10,4), IF(AND($F32<=0.2916,$G32=2),J33-HLOOKUP($B30+$J32,RLT!$J$1:$X$10,7),IF(AND($F32<=0.541,$F32>=0.5,$G32=2),J33-HLOOKUP($B30+$J32,RLT!$J$1:$X$10,4), J33)))) ),J33)) -> 0 | K34: =IF(K33=0, 0,IF(D33="",IF(OR(AND($F32<=0.541,$G32=1,$F32>=0.5), AND($F32<=0.375,$G32=1)),0, IF($G32=1,K33-HLOOKUP($B30+$J32,RLT!$J$1:$X$10,4), IF(AND($F32<=0.0833,$G32=2), K33-HLOOKUP($B30+$J32,RLT!$J$1:$X$10,4), IF(AND($F32<=0.2916,$G32=2),K33-HLOOKUP($B30+$J32,RLT!$J$1:$X$10,7),IF(AND($F32<=0.541,$F32>=0.5,$G32=2),K33-HLOOKUP($B30+$J32,RLT!$J$1:$X$10,4), K33)))) ),K33)) -> 0 | L34: =IF(L33=0, 0,IF(E33="",IF(OR(AND($F32<=0.541,$G32=1,$F32>=0.5), AND($F32<=0.375,$G32=1)),0, IF($G32=1,L33-HLOOKUP($B30+$J32,RLT!$J$1:$X$10,4), IF(AND($F32<=0.0833,$G32=2), L33-HLOOKUP($B30+$J32,RLT!$J$1:$X$10,4), IF(AND($F32<=0.2916,$G32=2),L33-HLOOKUP($B30+$J32,RLT!$J$1:$X$10,7),IF(AND($F32<=0.541,$F32>=0.5,$G32=2),L33-HLOOKUP($B30+$J32,RLT!$J$1:$X$10,4), L33)))) ),L33)) -> 0 | M34: =IF(M33=0, 0,IF(F33="",IF(OR(AND($F32<=0.541,$G32=1,$F32>=0.5), AND($F32<=0.375,$G32=1)),0, IF($G32=1,M33-HLOOKUP($B30+$J32,RLT!$J$1:$X$10,4), IF(AND($F32<=0.0833,$G32=2), M33-HLOOKUP($B30+$J32,RLT!$J$1:$X$10,4), IF(AND($F32<=0.2916,$G32=2),M33-HLOOKUP($B30+$J32,RLT!$J$1:$X$10,7),IF(AND($F32<=0.541,$F32>=0.5,$G32=2),M33-HLOOKUP($B30+$J32,RLT!$J$1:$X$10,4), M33)))) ),M33)) -> 0 | N34: =IF(N33=0, 0,IF(G33="",IF(OR(AND($F32<=0.541,$G32=1,$F32>=0.5), AND($F32<=0.375,$G32=1)),0, IF($G32=1,N33-HLOOKUP($B30+$J32,RLT!$J$1:$X$10,4), IF(AND($F32<=0.0833,$G32=2), N33-HLOOKUP($B30+$J32,RLT!$J$1:$X$10,4), IF(AND($F32<=0.2916,$G32=2),N33-HLOOKUP($B30+$J32,RLT!$J$1:$X$10,7),IF(AND($F32<=0.541,$F32>=0.5,$G32=2),N33-HLOOKUP($B30+$J32,RLT!$J$1:$X$10,4), N33)))) ),N33)) -> 0 | O34: =IF(O33=0, 0,IF(H33="",IF(OR(AND($F32<=0.541,$G32=1,$F32>=0.5), AND($F32<=0.375,$G32=1)),0, IF($G32=1,O33-HLOOKUP($B30+$J32,RLT!$J$1:$X$10,4), IF(AND($F32<=0.0833,$G32=2), O33-HLOOKUP($B30+$J32,RLT!$J$1:$X$10,4), IF(AND($F32<=0.2916,$G32=2),O33-HLOOKUP($B30+$J32,RLT!$J$1:$X$10,7),IF(AND($F32<=0.541,$F32>=0.5,$G32=2),O33-HLOOKUP($B30+$J32,RLT!$J$1:$X$10,4), O33)))) ),O33)) -> 0 | P34: =SUMPRODUCT(--(I34:O34>0),I34:O34) -> 0 | R34: =$B31 -> 0 | T34: =IF($B31=0, 0, VLOOKUP($B31,RLT!$A$26:$E$294,2)) -> 0 | U34: =IF($B31=0, 0, VLOOKUP($B31,RLT!$A$26:$E$294,3)) -> 0 | V34: =IF($B31=0, 0, VLOOKUP($B31,RLT!$A$26:$E$294,4)) -> 0 | W34: =IF($B31=0, 0, VLOOKUP($B31,RLT!$A$26:$E$294,5)) -> 0
A35: =SUM(I34:I35) -> 0 | B35: 0 | C35: 0 | D35: 0 | E35: 0 | F35: 0 | G35: 0 | I35: =IF(A34=9,0,IF(A33="",0,IF(AND($B30>1,$B30<8),HLOOKUP($B30,RLT!$B$1:$H$7,6),IF($B30=8,$W34,0)))) -> 0 | J35: =IF(B34=9,0,IF(B33="",0,IF(AND($B30>1,$B30<8),HLOOKUP($B30,RLT!$B$1:$H$7,6),IF($B30=8,$W34,0)))) -> 0 | K35: =IF(C34=9,0,IF(C33="",0,IF(AND($B30>1,$B30<8),HLOOKUP($B30,RLT!$B$1:$H$7,6),IF($B30=8,$W34,0)))) -> 0 | L35: =IF(D34=9,0,IF(D33="",0,IF(AND($B30>1,$B30<8),HLOOKUP($B30,RLT!$B$1:$H$7,6),IF($B30=8,$W34,0)))) -> 0 | M35: =IF(E34=9,0,IF(E33="",0,IF(AND($B30>1,$B30<8),HLOOKUP($B30,RLT!$B$1:$H$7,6),IF($B30=8,$W34,0)))) -> 0 | N35: =IF(F34=9,0,IF(F33="",0,IF(AND($B30>1,$B30<8),HLOOKUP($B30,RLT!$B$1:$H$7,6),IF($B30=8,$W34,0)))) -> 0 | O35: =IF(G34=9,0,IF(G33="",0,IF(AND($B30>1,$B30<8),HLOOKUP($B30,RLT!$B$1:$H$7,6),IF($B30=8,$W34,0)))) -> 0 | P35: =SUM(I35:O35) -> 0
A37: Per Diem #5 | C37: Location: | F37: Location 5 Total | G37: =SUM(A43:G43) -> 0
A38: Select Rates: | B38: 1 | D38: Date | F38: Time
A39: Foreign Rates: | C39: Depart: | G39: 1
C40: Return: | G40: 1 | I40: =IF(B38=8,6,1) -> 1 | J40: =IF(B38=8,5,0) -> 0
A41: =IF(D39 ="", "", D39) ->  | B41: =IF(A41="","",(IF(A41+1<=$D$40,A41+1,""))) ->  | I41: =IF(VLOOKUP(A42,RLT!$I$3:$X$14,$B38+$I40)="None",0,IF(A41="",0,VLOOKUP(A42,RLT!$I$3:$X$14,$B38+$I40))) -> 0 | J41: =IF(VLOOKUP(B42,RLT!$I$3:$X$14,$B38+$I40)="None",0,IF(B41="",0,VLOOKUP(B42,RLT!$I$3:$X$14,$B38+$I40))) -> 0 | K41: =IF(VLOOKUP(C42,RLT!$I$3:$X$14,$B38+$I40)="None",0,IF(C41="",0,VLOOKUP(C42,RLT!$I$3:$X$14,$B38+$I40))) -> 0 | L41: =IF(VLOOKUP(D42,RLT!$I$3:$X$14,$B38+$I40)="None",0,IF(D41="",0,VLOOKUP(D42,RLT!$I$3:$X$14,$B38+$I40))) -> 0 | M41: =IF(VLOOKUP(E42,RLT!$I$3:$X$14,$B38+$I40)="None",0,IF(E41="",0,VLOOKUP(E42,RLT!$I$3:$X$14,$B38+$I40))) -> 0 | N41: =IF(VLOOKUP(F42,RLT!$I$3:$X$14,$B38+$I40)="None",0,IF(F41="",0,VLOOKUP(F42,RLT!$I$3:$X$14,$B38+$I40))) -> 0 | O41: =IF(VLOOKUP(G42,RLT!$I$3:$X$14,$B38+$I40)="None",0,IF(G41="",0,VLOOKUP(G42,RLT!$I$3:$X$14,$B38+$I40))) -> 0 | R41: M&IE Foreign Rate | T41: Breakfast | U41: Lunch | V41: Dinner | W41: IE
A42: 1 | B42: 1 | C42: 1 | D42: 1 | E42: 1 | F42: 1 | G42: 1 | I42: =IF(I41=0, 0, IF($D39="",0, IF(AND($F39<0.29166,$G39=1),I41,IF(AND($F39<0.45833,$G39=1),I41-HLOOKUP($B38+$J40,RLT!$J$1:$X$10,9),IF(AND($F39>=0.5,$F39<=0.541,$G39=1),I41,IF($G39=1,I41-HLOOKUP($B38+$J40,RLT!$J$1:$X$10,6),IF(AND($F39>=0.5,$F39<=0.541,$G39=2),I41-HLOOKUP($B38+$J40,RLT!$J$1:$X$10,6),IF(AND($F39<0.20833,$G39=2),I41-HLOOKUP($B38+$J40,RLT!$J$1:$X$10,6),0)))))))) -> 0 | J42: =IF(J41=0, 0,IF(C41="",IF(OR(AND($F40<=0.541,$G40=1,$F40>=0.5), AND($F40<=0.375,$G40=1)),0, IF($G40=1,J41-HLOOKUP($B38+$J40,RLT!$J$1:$X$10,4), IF(AND($F40<=0.0833,$G40=2), J41-HLOOKUP($B38+$J40,RLT!$J$1:$X$10,4), IF(AND($F40<=0.2916,$G40=2),J41-HLOOKUP($B38+$J40,RLT!$J$1:$X$10,7),IF(AND($F40<=0.541,$F40>=0.5,$G40=2),J41-HLOOKUP($B38+$J40,RLT!$J$1:$X$10,4), J41)))) ),J41)) -> 0 | K42: =IF(K41=0, 0,IF(D41="",IF(OR(AND($F40<=0.541,$G40=1,$F40>=0.5), AND($F40<=0.375,$G40=1)),0, IF($G40=1,K41-HLOOKUP($B38+$J40,RLT!$J$1:$X$10,4), IF(AND($F40<=0.0833,$G40=2), K41-HLOOKUP($B38+$J40,RLT!$J$1:$X$10,4), IF(AND($F40<=0.2916,$G40=2),K41-HLOOKUP($B38+$J40,RLT!$J$1:$X$10,7),IF(AND($F40<=0.541,$F40>=0.5,$G40=2),K41-HLOOKUP($B38+$J40,RLT!$J$1:$X$10,4), K41)))) ),K41)) -> 0 | L42: =IF(L41=0, 0,IF(E41="",IF(OR(AND($F40<=0.541,$G40=1,$F40>=0.5), AND($F40<=0.375,$G40=1)),0, IF($G40=1,L41-HLOOKUP($B38+$J40,RLT!$J$1:$X$10,4), IF(AND($F40<=0.0833,$G40=2), L41-HLOOKUP($B38+$J40,RLT!$J$1:$X$10,4), IF(AND($F40<=0.2916,$G40=2),L41-HLOOKUP($B38+$J40,RLT!$J$1:$X$10,7),IF(AND($F40<=0.541,$F40>=0.5,$G40=2),L41-HLOOKUP($B38+$J40,RLT!$J$1:$X$10,4), L41)))) ),L41)) -> 0 | M42: =IF(M41=0, 0,IF(F41="",IF(OR(AND($F40<=0.541,$G40=1,$F40>=0.5), AND($F40<=0.375,$G40=1)),0, IF($G40=1,M41-HLOOKUP($B38+$J40,RLT!$J$1:$X$10,4), IF(AND($F40<=0.0833,$G40=2), M41-HLOOKUP($B38+$J40,RLT!$J$1:$X$10,4), IF(AND($F40<=0.2916,$G40=2),M41-HLOOKUP($B38+$J40,RLT!$J$1:$X$10,7),IF(AND($F40<=0.541,$F40>=0.5,$G40=2),M41-HLOOKUP($B38+$J40,RLT!$J$1:$X$10,4), M41)))) ),M41)) -> 0 | N42: =IF(N41=0, 0,IF(G41="",IF(OR(AND($F40<=0.541,$G40=1,$F40>=0.5), AND($F40<=0.375,$G40=1)),0, IF($G40=1,N41-HLOOKUP($B38+$J40,RLT!$J$1:$X$10,4), IF(AND($F40<=0.0833,$G40=2), N41-HLOOKUP($B38+$J40,RLT!$J$1:$X$10,4), IF(AND($F40<=0.2916,$G40=2),N41-HLOOKUP($B38+$J40,RLT!$J$1:$X$10,7),IF(AND($F40<=0.541,$F40>=0.5,$G40=2),N41-HLOOKUP($B38+$J40,RLT!$J$1:$X$10,4), N41)))) ),N41)) -> 0 | O42: =IF(O41=0, 0,IF(H41="",IF(OR(AND($F40<=0.541,$G40=1,$F40>=0.5), AND($F40<=0.375,$G40=1)),0, IF($G40=1,O41-HLOOKUP($B38+$J40,RLT!$J$1:$X$10,4), IF(AND($F40<=0.0833,$G40=2), O41-HLOOKUP($B38+$J40,RLT!$J$1:$X$10,4), IF(AND($F40<=0.2916,$G40=2),O41-HLOOKUP($B38+$J40,RLT!$J$1:$X$10,7),IF(AND($F40<=0.541,$F40>=0.5,$G40=2),O41-HLOOKUP($B38+$J40,RLT!$J$1:$X$10,4), O41)))) ),O41)) -> 0 | P42: =SUMPRODUCT(--(I42:O42>0),I42:O42) -> 0 | R42: =$B39 -> 0 | T42: =IF($B39=0, 0, VLOOKUP($B39,RLT!$A$26:$E$294,2)) -> 0 | U42: =IF($B39=0, 0, VLOOKUP($B39,RLT!$A$26:$E$294,3)) -> 0 | V42: =IF($B39=0, 0, VLOOKUP($B39,RLT!$A$26:$E$294,4)) -> 0 | W42: =IF($B39=0, 0, VLOOKUP($B39,RLT!$A$26:$E$294,5)) -> 0
A43: =SUM(I42:I43) -> 0 | B43: 0 | C43: 0 | D43: 0 | E43: 0 | F43: 0 | G43: 0 | I43: =IF(A42=9,0,IF(A41="",0,IF(AND($B38>1,$B38<8),HLOOKUP($B38,RLT!$B$1:$H$7,6),IF($B38=8,$W42,0)))) -> 0 | J43: =IF(B42=9,0,IF(B41="",0,IF(AND($B38>1,$B38<8),HLOOKUP($B38,RLT!$B$1:$H$7,6),IF($B38=8,$W42,0)))) -> 0 | K43: =IF(C42=9,0,IF(C41="",0,IF(AND($B38>1,$B38<8),HLOOKUP($B38,RLT!$B$1:$H$7,6),IF($B38=8,$W42,0)))) -> 0 | L43: =IF(D42=9,0,IF(D41="",0,IF(AND($B38>1,$B38<8),HLOOKUP($B38,RLT!$B$1:$H$7,6),IF($B38=8,$W42,0)))) -> 0 | M43: =IF(E42=9,0,IF(E41="",0,IF(AND($B38>1,$B38<8),HLOOKUP($B38,RLT!$B$1:$H$7,6),IF($B38=8,$W42,0)))) -> 0 | N43: =IF(F42=9,0,IF(F41="",0,IF(AND($B38>1,$B38<8),HLOOKUP($B38,RLT!$B$1:$H$7,6),IF($B38=8,$W42,0)))) -> 0 | O43: =IF(G42=9,0,IF(G41="",0,IF(AND($B38>1,$B38<8),HLOOKUP($B38,RLT!$B$1:$H$7,6),IF($B38=8,$W42,0)))) -> 0 | P43: =SUM(I43:O43) -> 0
A45: Per Diem #6 | C45: Location: | F45: Location 6 Total | G45: =SUM(A51:G51) -> 0
A46: Select Rates: | B46: 1 | D46: Date | F46: Time
A47: Foreign Rates: | C47: Depart: | G47: 1
C48: Return: | G48: 1 | I48: =IF(B46=8,7,1) -> 1 | J48: =IF(B46=8,6,0) -> 0
A49: =IF(D47 ="", "", D47) ->  | B49: =IF(A49="","",(IF(A49+1<=$D$48,A49+1,""))) ->  | I49: =IF(VLOOKUP(A50,RLT!$I$3:$X$14,$B46+$I48)="None",0,IF(A49="",0,VLOOKUP(A50,RLT!$I$3:$X$14,$B46+$I48))) -> 0 | J49: =IF(VLOOKUP(B50,RLT!$I$3:$X$14,$B46+$I48)="None",0,IF(B49="",0,VLOOKUP(B50,RLT!$I$3:$X$14,$B46+$I48))) -> 0 | K49: =IF(VLOOKUP(C50,RLT!$I$3:$X$14,$B46+$I48)="None",0,IF(C49="",0,VLOOKUP(C50,RLT!$I$3:$X$14,$B46+$I48))) -> 0 | L49: =IF(VLOOKUP(D50,RLT!$I$3:$X$14,$B46+$I48)="None",0,IF(D49="",0,VLOOKUP(D50,RLT!$I$3:$X$14,$B46+$I48))) -> 0 | M49: =IF(VLOOKUP(E50,RLT!$I$3:$X$14,$B46+$I48)="None",0,IF(E49="",0,VLOOKUP(E50,RLT!$I$3:$X$14,$B46+$I48))) -> 0 | N49: =IF(VLOOKUP(F50,RLT!$I$3:$X$14,$B46+$I48)="None",0,IF(F49="",0,VLOOKUP(F50,RLT!$I$3:$X$14,$B46+$I48))) -> 0 | O49: =IF(VLOOKUP(G50,RLT!$I$3:$X$14,$B46+$I48)="None",0,IF(G49="",0,VLOOKUP(G50,RLT!$I$3:$X$14,$B46+$I48))) -> 0 | R49: M&IE Foreign Rate | T49: Breakfast | U49: Lunch | V49: Dinner | W49: IE
A50: 1 | B50: 1 | C50: 1 | D50: 1 | E50: 1 | F50: 1 | G50: 1 | I50: =IF(I49=0, 0, IF($D47="",0, IF(AND($F47<0.29166,$G47=1),I49,IF(AND($F47<0.45833,$G47=1),I49-HLOOKUP($B46+$J48,RLT!$J$1:$X$10,9),IF(AND($F47>=0.5,$F47<=0.541,$G47=1),I49,IF($G47=1,I49-HLOOKUP($B46+$J48,RLT!$J$1:$X$10,6),IF(AND($F47>=0.5,$F47<=0.541,$G47=2),I49-HLOOKUP($B46+$J48,RLT!$J$1:$X$10,6),IF(AND($F47<0.20833,$G47=2),I49-HLOOKUP($B46+$J48,RLT!$J$1:$X$10,6),0)))))))) -> 0 | J50: =IF(J49=0, 0,IF(C49="",IF(OR(AND($F48<=0.541,$G48=1,$F48>=0.5), AND($F48<=0.375,$G48=1)),0, IF($G48=1,J49-HLOOKUP($B46+$J48,RLT!$J$1:$X$10,4), IF(AND($F48<=0.0833,$G48=2), J49-HLOOKUP($B46+$J48,RLT!$J$1:$X$10,4), IF(AND($F48<=0.2916,$G48=2),J49-HLOOKUP($B46+$J48,RLT!$J$1:$X$10,7),IF(AND($F48<=0.541,$F48>=0.5,$G48=2),J49-HLOOKUP($B46+$J48,RLT!$J$1:$X$10,4), J49)))) ),J49)) -> 0 | K50: =IF(K49=0, 0,IF(D49="",IF(OR(AND($F48<=0.541,$G48=1,$F48>=0.5), AND($F48<=0.375,$G48=1)),0, IF($G48=1,K49-HLOOKUP($B46+$J48,RLT!$J$1:$X$10,4), IF(AND($F48<=0.0833,$G48=2), K49-HLOOKUP($B46+$J48,RLT!$J$1:$X$10,4), IF(AND($F48<=0.2916,$G48=2),K49-HLOOKUP($B46+$J48,RLT!$J$1:$X$10,7),IF(AND($F48<=0.541,$F48>=0.5,$G48=2),K49-HLOOKUP($B46+$J48,RLT!$J$1:$X$10,4), K49)))) ),K49)) -> 0 | L50: =IF(L49=0, 0,IF(E49="",IF(OR(AND($F48<=0.541,$G48=1,$F48>=0.5), AND($F48<=0.375,$G48=1)),0, IF($G48=1,L49-HLOOKUP($B46+$J48,RLT!$J$1:$X$10,4), IF(AND($F48<=0.0833,$G48=2), L49-HLOOKUP($B46+$J48,RLT!$J$1:$X$10,4), IF(AND($F48<=0.2916,$G48=2),L49-HLOOKUP($B46+$J48,RLT!$J$1:$X$10,7),IF(AND($F48<=0.541,$F48>=0.5,$G48=2),L49-HLOOKUP($B46+$J48,RLT!$J$1:$X$10,4), L49)))) ),L49)) -> 0 | M50: =IF(M49=0, 0,IF(F49="",IF(OR(AND($F48<=0.541,$G48=1,$F48>=0.5), AND($F48<=0.375,$G48=1)),0, IF($G48=1,M49-HLOOKUP($B46+$J48,RLT!$J$1:$X$10,4), IF(AND($F48<=0.0833,$G48=2), M49-HLOOKUP($B46+$J48,RLT!$J$1:$X$10,4), IF(AND($F48<=0.2916,$G48=2),M49-HLOOKUP($B46+$J48,RLT!$J$1:$X$10,7),IF(AND($F48<=0.541,$F48>=0.5,$G48=2),M49-HLOOKUP($B46+$J48,RLT!$J$1:$X$10,4), M49)))) ),M49)) -> 0 | N50: =IF(N49=0, 0,IF(G49="",IF(OR(AND($F48<=0.541,$G48=1,$F48>=0.5), AND($F48<=0.375,$G48=1)),0, IF($G48=1,N49-HLOOKUP($B46+$J48,RLT!$J$1:$X$10,4), IF(AND($F48<=0.0833,$G48=2), N49-HLOOKUP($B46+$J48,RLT!$J$1:$X$10,4), IF(AND($F48<=0.2916,$G48=2),N49-HLOOKUP($B46+$J48,RLT!$J$1:$X$10,7),IF(AND($F48<=0.541,$F48>=0.5,$G48=2),N49-HLOOKUP($B46+$J48,RLT!$J$1:$X$10,4), N49)))) ),N49)) -> 0 | O50: =IF(O49=0, 0,IF(H49="",IF(OR(AND($F48<=0.541,$G48=1,$F48>=0.5), AND($F48<=0.375,$G48=1)),0, IF($G48=1,O49-HLOOKUP($B46+$J48,RLT!$J$1:$X$10,4), IF(AND($F48<=0.0833,$G48=2), O49-HLOOKUP($B46+$J48,RLT!$J$1:$X$10,4), IF(AND($F48<=0.2916,$G48=2),O49-HLOOKUP($B46+$J48,RLT!$J$1:$X$10,7),IF(AND($F48<=0.541,$F48>=0.5,$G48=2),O49-HLOOKUP($B46+$J48,RLT!$J$1:$X$10,4), O49)))) ),O49)) -> 0 | P50: =SUMPRODUCT(--(I50:O50>0),I50:O50) -> 0 | R50: =$B47 -> 0 | T50: =IF($B47=0, 0, VLOOKUP($B47,RLT!$A$26:$E$294,2)) -> 0 | U50: =IF($B47=0, 0, VLOOKUP($B47,RLT!$A$26:$E$294,3)) -> 0 | V50: =IF($B47=0, 0, VLOOKUP($B47,RLT!$A$26:$E$294,4)) -> 0 | W50: =IF($B47=0, 0, VLOOKUP($B47,RLT!$A$26:$E$294,5)) -> 0
A51: =SUM(I50:I51) -> 0 | B51: 0 | C51: 0 | D51: 0 | E51: 0 | F51: 0 | G51: 0 | I51: =IF(A50=9,0,IF(A49="",0,IF(AND($B46>1,$B46<8),HLOOKUP($B46,RLT!$B$1:$H$7,6),IF($B46=8,$W50,0)))) -> 0 | J51: =IF(B50=9,0,IF(B49="",0,IF(AND($B46>1,$B46<8),HLOOKUP($B46,RLT!$B$1:$H$7,6),IF($B46=8,$W50,0)))) -> 0 | K51: =IF(C50=9,0,IF(C49="",0,IF(AND($B46>1,$B46<8),HLOOKUP($B46,RLT!$B$1:$H$7,6),IF($B46=8,$W50,0)))) -> 0 | L51: =IF(D50=9,0,IF(D49="",0,IF(AND($B46>1,$B46<8),HLOOKUP($B46,RLT!$B$1:$H$7,6),IF($B46=8,$W50,0)))) -> 0 | M51: =IF(E50=9,0,IF(E49="",0,IF(AND($B46>1,$B46<8),HLOOKUP($B46,RLT!$B$1:$H$7,6),IF($B46=8,$W50,0)))) -> 0 | N51: =IF(F50=9,0,IF(F49="",0,IF(AND($B46>1,$B46<8),HLOOKUP($B46,RLT!$B$1:$H$7,6),IF($B46=8,$W50,0)))) -> 0 | O51: =IF(G50=9,0,IF(G49="",0,IF(AND($B46>1,$B46<8),HLOOKUP($B46,RLT!$B$1:$H$7,6),IF($B46=8,$W50,0)))) -> 0 | P51: =SUM(I51:O51) -> 0

Sheet Mileage Log
B1: Traveler Name | C1: =IF('Travel Reimbursement'!$B$1 = "","",'Travel Reimbursement'!$B$1) ->  | E1: Travel Start Date | F1: =IF('Travel Reimbursement'!$B$4="","",'Travel Reimbursement'!$B$4) ->  | L1: Incomplete mileage logs may result in delays, adjustments, and disapprovals. All calculations for commuting mile deduction are automatically calculated when completing the mileage log.
B2: One Way Commute | E2: Travel End Date | F2: =IF('Travel Reimbursement'!$H$4="","",'Travel Reimbursement'!$H$4) -> 
B3: Official Duty Station | C3: =VLOOKUP('Travel Reimbursement'!$H$3,intake!B2:C13,2) -> SELECT DUTY STATION | E3: Home Address
B4: Total Mileage | C4: =SUM(L7:L39) -> 0 | E4: Reimburseable Miles | F4: =SUM(K7:K39) -> 0
B5: Date | C5: From (City/State) | D5: To (City/State) | E5: Business Purpose | F5: Entered Mileage | G5: Did you Depart/Return from/to your Official Duty Station? | H5: Odometer | K5: Calculated Mileage
H6: Start | I6: Finish | J6: Round Trip
F7: 0 | G7: No | J7: No | K7: =IF(OR($C$2="",$F$3="",B7="",C7="",D7="",E7=""),0,(IF(F7>0,IF(G7="NO",IF(J7="YES",IF((F7*2-$C$2*2)>0,F7*2-$C$2*2,0),IF((F7-$C$2)>0,F7-$C$2,0)),IF(J7="YES",F7*2,F7)),0))) -> 0 | L7: =IF(J7="YES",F7*2,F7) -> 0
F8: 0 | G8: No | J8: No | K8: =IF(OR($C$2="",$F$3="",B8="",C8="",D8="",E8=""),0,(IF(F8>0,IF(G8="NO",IF(J8="YES",IF((F8*2-$C$2*2)>0,F8*2-$C$2*2,0),IF((F8-$C$2)>0,F8-$C$2,0)),IF(J8="YES",F8*2,F8)),0))) -> 0 | L8: =IF(J8="YES",F8*2,F8) -> 0
F9: 0 | G9: No | J9: No | K9: 0 | L9: 0
F10: 0 | G10: No | J10: No | K10: 0 | L10: 0
F11: 0 | G11: No | J11: No | K11: 0 | L11: 0
F12: 0 | G12: No | J12: No | K12: 0 | L12: 0
F13: 0 | G13: No | J13: No | K13: 0 | L13: 0
F14: 0 | G14: No | J14: No | K14: 0 | L14: 0
F15: 0 | G15: No | J15: No | K15: 0 | L15: 0
F16: 0 | G16: No | J16: No | K16: 0 | L16: 0
F17: 0 | G17: No | J17: No | K17: 0 | L17: 0
F18: 0 | G18: No | J18: No | K18: 0 | L18: 0
F19: 0 | G19: No | J19: No | K19: 0 | L19: 0
F20: 0 | G20: No | J20: No | K20: 0 | L20: 0
F21: 0 | G21: No | J21: No | K21: 0 | L21: 0
F22: 0 | G22: No | J22: No | K22: 0 | L22: 0
F23: 0 | G23: No | J23: No | K23: 0 | L23: 0
F24: 0 | G24: No | J24: No | K24: 0 | L24: 0
F25: 0 | G25: No | J25: No | K25: 0 | L25: 0
F26: 0 | G26: No | J26: No | K26: 0 | L26: 0
F27: 0 | G27: No | J27: No | K27: 0 | L27: 0
F28: 0 | G28: No | J28: No | K28: 0 | L28: 0
F29: 0 | G29: No | J29: No | K29: 0 | L29: 0
F30: 0 | G30: No | J30: No | K30: 0 | L30: 0
F31: 0 | G31: No | J31: No | K31: 0 | L31: 0
F32: 0 | G32: No | J32: No | K32: 0 | L32: 0
F33: 0 | G33: No | J33: No | K33: 0 | L33: 0
F34: 0 | G34: No | J34: No | K34: 0 | L34: 0
F35: 0 | G35: No | J35: No | K35: 0 | L35: 0
F36: 0 | G36: No | J36: No | K36: 0 | L36: 0
F37: 0 | G37: No | J37: No | K37: 0 | L37: 0
F38: 0 | G38: No | J38: No | K38: 0 | L38: 0
F39: 0 | G39: No | J39: No | K39: 0 | L39: 0

Sheet Business Meal Details
A1: Business Meal Form
A2: Employee Name | C2: =IF('Travel Reimbursement'!B1="","",'Travel Reimbursement'!B1) ->  | D2: Department | E2: =IF('Travel Reimbursement'!H1=0,"",'Travel Reimbursement'!H1) -> 
A3: Meal Date | B3: Location Name | C3: Business Purpose | D3: Attendee Last Name | E3: Attendee First Name | F3: Attendee Affiliation | G3: Total Cost
G4: 0
G5: 0
G6: 0
G7: 0
G8: 0
G9: 0
G10: 0
G11: 0
G12: 0
G13: 0
G14: 0
G15: 0
G16: 0
G17: 0
G18: 0
G19: 0
G20: 0
G21: 0
G22: 0
G23: 0
G24: 0
G25: 0
G26: 0
G27: 0
G28: 0
G29: 0
G30: 0
G31: 0
G32: 0
G33: 0
A34: TOTAL | G34: =SUM(G4:G33) -> 0
A35: Field Name | C35: Description of Entry | D35: Please list each attendee/guest on a separate line. This form certifies every attendee/guest is invited by an employee of the University and has a legitimate business purpose for attending. This attendance must reflect actual attendees.
A36: Business Purpose | C36: Explanation of business purpose for meal.
A37: Attendee Affiliation | C37: List affiliation of attendees to University (eg. Candidate, Speaker, etc.)
A38: Total Cost | C38: Enter the total reimbursement requested as reflected on the itemized receipt. (Alcohol is not reimbursable)

Sheet Meals With No Overnight
A1: Meal Reimbursement With No Overnight Stay
A2: Employee Name: | C2: =IF('Travel Reimbursement'!B1="","",'Travel Reimbursement'!B1) ->  | D2: Official Duty Station: | F2: =VLOOKUP('Travel Reimbursement'!$H$3,intake!B2:C13,2) -> SELECT DUTY STATION
A3: Meal Date | B3: Location Name | C3: Business Purpose | D3: Time Left Home/Duty Station | E3: Time Returned to Home/Duty Station | F3: Per diem Amount for Destination per Meal Claimed Click here to obtain Meal Rates | G3: Select Meal For Reimbursment Breakfast / Lunch / Dinner | H3: Total Claimed - 75% of per diem amount
H4: =IF(OR(F4="",G4=""),0,0.75*(INDEX(RLT!$B$3:$G$5,MATCH(G4,RLT!$A$3:$A$5,0),MATCH(F4,RLT!$B$2:$G$2,)))) -> 0
H5: =IF(OR(F5="",G5=""),0,0.75*(INDEX(RLT!$B$3:$G$5,MATCH(G5,RLT!$A$3:$A$5,0),MATCH(F5,RLT!$B$2:$G$2,)))) -> 0
H6: =IF(OR(F6="",G6=""),0,0.75*(INDEX(RLT!$B$3:$G$5,MATCH(G6,RLT!$A$3:$A$5,0),MATCH(F6,RLT!$B$2:$G$2,)))) -> 0
H7: =IF(OR(F7="",G7=""),0,0.75*(INDEX(RLT!$B$3:$G$5,MATCH(G7,RLT!$A$3:$A$5,0),MATCH(F7,RLT!$B$2:$G$2,)))) -> 0
H8: =IF(OR(F8="",G8=""),0,0.75*(INDEX(RLT!$B$3:$G$5,MATCH(G8,RLT!$A$3:$A$5,0),MATCH(F8,RLT!$B$2:$G$2,)))) -> 0
H9: =IF(OR(F9="",G9=""),0,0.75*(INDEX(RLT!$B$3:$G$5,MATCH(G9,RLT!$A$3:$A$5,0),MATCH(F9,RLT!$B$2:$G$2,)))) -> 0
H10: =IF(OR(F10="",G10=""),0,0.75*(INDEX(RLT!$B$3:$G$5,MATCH(G10,RLT!$A$3:$A$5,0),MATCH(F10,RLT!$B$2:$G$2,)))) -> 0
H11: =IF(OR(F11="",G11=""),0,0.75*(INDEX(RLT!$B$3:$G$5,MATCH(G11,RLT!$A$3:$A$5,0),MATCH(F11,RLT!$B$2:$G$2,)))) -> 0
H12: =IF(OR(F12="",G12=""),0,0.75*(INDEX(RLT!$B$3:$G$5,MATCH(G12,RLT!$A$3:$A$5,0),MATCH(F12,RLT!$B$2:$G$2,)))) -> 0
H13: =IF(OR(F13="",G13=""),0,0.75*(INDEX(RLT!$B$3:$G$5,MATCH(G13,RLT!$A$3:$A$5,0),MATCH(F13,RLT!$B$2:$G$2,)))) -> 0
H14: =IF(OR(F14="",G14=""),0,0.75*(INDEX(RLT!$B$3:$G$5,MATCH(G14,RLT!$A$3:$A$5,0),MATCH(F14,RLT!$B$2:$G$2,)))) -> 0
H15: =IF(OR(F15="",G15=""),0,0.75*(INDEX(RLT!$B$3:$G$5,MATCH(G15,RLT!$A$3:$A$5,0),MATCH(F15,RLT!$B$2:$G$2,)))) -> 0
H16: =IF(OR(F16="",G16=""),0,0.75*(INDEX(RLT!$B$3:$G$5,MATCH(G16,RLT!$A$3:$A$5,0),MATCH(F16,RLT!$B$2:$G$2,)))) -> 0
A17: TOTAL CLAIMED | H17: =SUM(H4:H16) -> 0
A18: Field Name | C18: Description of Entry | D18: Certification: I certify that I was away from my home and official duty station for more than ten hours and that these reimbursement requests are occasional and non-routine. I certify that the expenses claimed were incurred by me on official University business on the dates shown above.
A19: Business Purpose | C19: Explanation of business purpose for trip
A20: Per Diem Amount For Destination Per Meal Claimed | C20: 1.) Away from home or duty station for at least (10) hours = lunch. 2.) Away from home or duty station for at least (10) hours and departure is prior to 7:00am = lunch and breakfast. 3.) Away from home or duty station for at least (10) hours and departure prior to 7:00am and returned after 7:00pm = lunch, breakfast and dinner.
A21: Total Claimed | C21: 75% of the GSA per diem meal rate in effect for each meal for destination of travel. | D21: =IF('Travel Reimbursement'!$B$1 = "","",'Travel Reimbursement'!$B$1) ->  | F21: Employee signature:____________________________________________________
D22: Department Head, Director or Dean Approval (Ad Hoc Approval through KFS Preferred) Signature: ___________________________________________________________

Sheet RLT (hidden)
A1: 1 | B1: 2 | C1: 3 | D1: 4 | E1: 5 | F1: 6 | G1: 7 | H1: 8 | J1: 1 | K1: 2 | L1: 3 | M1: 4 | N1: 5 | O1: 6 | P1: 7 | Q1: 8 | R1: 9 | S1: 10 | T1: 11 | U1: 12 | V1: 13 | W1: 14 | X1: 15
A2: M&IE Total | B2: 46 | C2: 51 | D2: 56 | E2: 61 | F2: 66 | G2: 71 | H2: =SUM('Travel Reimbursement'!$T$3,'Travel Reimbursement'!$U$3,'Travel Reimbursement'!$V$3,'Travel Reimbursement'!$W$3) -> 0 | J2: M&IE Total | K2: =B2 -> 46 | L2: =C2 -> 51 | M2: 56 | N2: 61 | O2: 66 | P2: 71 | Q2: 0 | R2: =R22 -> 0 | S2: =S22 -> 0 | T2: 0 | U2: 0 | V2: 0 | W2: 0 | X2: 0
A3: Breakfast | B3: 7 | C3: 8 | D3: 9 | E3: 10 | F3: 11 | G3: 12 | H3: ='Travel Reimbursement'!$T$3 -> 0 | I3: 1 | J3: None | K3: =K2-B6 -> 41 | L3: 46 | M3: 51 | N3: 56 | O3: 61 | P3: 66 | Q3: 0 | R3: =R2-R26 -> 0 | S3: 0 | T3: 0 | U3: 0 | V3: 0 | W3: 0 | X3: 0
A4: Lunch | B4: 11 | C4: 12 | D4: 13 | E4: 15 | F4: 16 | G4: 18 | H4: ='Travel Reimbursement'!$U$3 -> 0 | I4: 2 | J4: Breakfast only | K4: =K3-B3 -> 34 | L4: 38 | M4: 42 | N4: 46 | O4: 50 | P4: 54 | Q4: 0 | R4: =R3-R23 -> 0 | S4: 0 | T4: 0 | U4: 0 | V4: 0 | W4: 0 | X4: 0
A5: Dinner | B5: 23 | C5: 26 | D5: 29 | E5: 31 | F5: 34 | G5: 36 | H5: ='Travel Reimbursement'!$V$3 -> 0 | I5: 3 | J5: Lunch only | K5: =K3-B4 -> 30 | L5: 34 | M5: 38 | N5: 41 | O5: 45 | P5: 48 | Q5: 0 | R5: =R3-R24 -> 0 | S5: 0 | T5: 0 | U5: 0 | V5: 0 | W5: 0 | X5: 0
A6: Incidentals | B6: 5 | C6: 5 | D6: 5 | E6: 5 | F6: 5 | G6: 5 | H6: ='Travel Reimbursement'!$W$3 -> 0 | I6: 4 | J6: Dinner Only | K6: =K3-B5 -> 18 | L6: 20 | M6: 22 | N6: 25 | O6: 27 | P6: 30 | Q6: 0 | R6: =R3-R25 -> 0 | S6: 0 | T6: 0 | U6: 0 | V6: 0 | W6: 0 | X6: 0
I7: 5 | J7: Breakfast and Lunch | K7: =K3-B3-B4 -> 23 | L7: 26 | M7: 29 | N7: 31 | O7: 34 | P7: 36 | Q7: 0 | R7: =R3-R23-R24 -> 0 | S7: 0 | T7: 0 | U7: 0 | V7: 0 | W7: 0 | X7: 0
I8: 6 | J8: Breakfast and Dinner | K8: =K3-B3-B5 -> 11 | L8: 12 | M8: 13 | N8: 15 | O8: 16 | P8: 18 | Q8: 0 | R8: =R3-R23-R25 -> 0 | S8: 0 | T8: 0 | U8: 0 | V8: 0 | W8: 0 | X8: 0
A9: Mileage Table | I9: 7 | J9: Lunch and Dinner | K9: =K3-B4-B5 -> 7 | L9: 8 | M9: 9 | N9: 10 | O9: 11 | P9: 12 | Q9: 0 | R9: =R3-R24-R25 -> 0 | S9: 0 | T9: 0 | U9: 0 | V9: 0 | W9: 0 | X9: 0
B10: Prior | C10: Previous | D10: Current | I10: 8 | J10: Bfast Lunch and Dinner | K10: 0 | L10: 0 | M10: 0 | N10: 0 | O10: 0 | P10: 0 | Q10: 0 | R10: 0 | S10: 0 | T10: 0 | U10: 0 | V10: 0 | W10: 0 | X10: 0
B11: 0.565 | C11: 0.56 | D11: 0.575 | I11: 9 | J11: Personal Day | K11: 0 | L11: 0 | M11: 0 | N11: 0 | O11: 0 | P11: 0 | Q11: 0 | R11: 0 | S11: 0 | T11: 0 | U11: 0 | V11: 0 | W11: 0 | X11: 0
A12: effective date | B12: 2013-01-29 | C12: 2014-01-01 | D12: 2015-01-28 | I12: 10 | J12: Did not Partake-Dietary | K12: =K2-B6 -> 41 | L12: 46 | M12: 51 | N12: 56 | O12: 61 | P12: 66 | Q12: 0 | R12: =R2-R26 -> 0 | S12: 0 | T12: 0 | U12: 0 | V12: 0 | W12: 0 | X12: 0
A13: =IF('Travel Reimbursement'!B4 = "", TODAY(),'Travel Reimbursement'!B4) -> 2015-03-24 | I13: 11 | J13: Did not partake-Religious | K13: =K2-B6 -> 41 | L13: 46 | M13: 51 | N13: 56 | O13: 61 | P13: 66 | Q13: 0 | R13: =R2-R26 -> 0 | S13: 0 | T13: 0 | U13: 0 | V13: 0 | W13: 0 | X13: 0
I14: 12 | J14: Did not partake-Business | K14: =K2-B6 -> 41 | L14: 46 | M14: 51 | N14: 56 | O14: 61 | P14: 66 | Q14: 0 | R14: =R2-R26 -> 0 | S14: 0 | T14: 0 | U14: 0 | V14: 0 | W14: 0 | X14: 0
D15: FALSE
A16: =IF(A13<C12,B11,IF(A13<D12,C11,D11)) -> 0.575 | D16: =0.194 -> 0.194
A18: CLASSIFIED EMPLOYEES TABLE
A19: BFAST | B19: LUNCH | C19: DINNER | D19: MISC | E19: TIPS
A20: 7.5 | B20: 9 | C20: 20 | D20: 0 | E20: 0.15 | R20: Multiple Per Diem - Foreign/Other - columns 9-15
A21: 6 | B21: 8 | C21: 18 | D21: 5 | E21: 0.15 | R21: 9 | S21: 10 | T21: 11 | U21: 12 | V21: 13 | W21: 14 | X21: 15
A22: 6 | B22: 8 | C22: 18 | D22: 0 | E22: 0.15 | I22: 7 | J22: 8 | K22: 9 | L22: 10 | M22: 11 | N22: 12 | Q22: M&IE Total | R22: =SUM('Per Diem Multiple Destinations'!T10:W10) -> 0 | S22: =SUM('Per Diem Multiple Destinations'!T18:W18) -> 0 | T22: =SUM('Per Diem Multiple Destinations'!T26:W26) -> 0 | U22: =SUM('Per Diem Multiple Destinations'!T34:W34) -> 0 | V22: =SUM('Per Diem Multiple Destinations'!T42:W42) -> 0 | W22: =SUM('Per Diem Multiple Destinations'!T50:W50) -> 0 | X22: =SUM('Per Diem Multiple Destinations'!T58:W58) -> 0
A23: 5 | B23: 7 | C23: 16 | D23: 0 | E23: 0.15 | I23: 11 | J23: 12 | K23: 13 | L23: 15 | M23: 16 | N23: 18 | Q23: Breakfast | R23: ='Per Diem Multiple Destinations'!T10 -> 0 | S23: ='Per Diem Multiple Destinations'!T18 -> 0 | T23: ='Per Diem Multiple Destinations'!T26 -> 0 | U23: ='Per Diem Multiple Destinations'!T34 -> 0 | V23: ='Per Diem Multiple Destinations'!T42 -> 0 | W23: ='Per Diem Multiple Destinations'!T50 -> 0 | X23: ='Per Diem Multiple Destinations'!T58 -> 0
I24: 23 | J24: 26 | K24: 29 | L24: 31 | M24: 34 | N24: 36 | Q24: Lunch | R24: ='Per Diem Multiple Destinations'!U10 -> 0 | S24: ='Per Diem Multiple Destinations'!U18 -> 0 | T24: ='Per Diem Multiple Destinations'!U26 -> 0 | U24: ='Per Diem Multiple Destinations'!U34 -> 0 | V24: ='Per Diem Multiple Destinations'!U42 -> 0 | W24: ='Per Diem Multiple Destinations'!U50 -> 0 | X24: ='Per Diem Multiple Destinations'!U58 -> 0
A25: M &IE Rate | B25: Breakfast | C25: Lunch | D25: Dinner | E25: Incidentals | I25: =SUM(I22:I24) -> 41 | J25: 46 | K25: 51 | L25: 56 | M25: 61 | N25: 66 | Q25: Dinner | R25: ='Per Diem Multiple Destinations'!V10 -> 0 | S25: ='Per Diem Multiple Destinations'!V18 -> 0 | T25: ='Per Diem Multiple Destinations'!V26 -> 0 | U25: ='Per Diem Multiple Destinations'!V34 -> 0 | V25: ='Per Diem Multiple Destinations'!V42 -> 0 | W25: ='Per Diem Multiple Destinations'!V50 -> 0 | X25: ='Per Diem Multiple Destinations'!V58 -> 0
A26: 1 | B26: 0 | C26: 0 | D26: 0 | E26: 1 | I26: =I22/I23 -> 0.6363636364 | Q26: Incidentals | R26: ='Per Diem Multiple Destinations'!W10 -> 0 | S26: ='Per Diem Multiple Destinations'!W18 -> 0 | T26: ='Per Diem Multiple Destinations'!W26 -> 0 | U26: ='Per Diem Multiple Destinations'!W34 -> 0 | V26: ='Per Diem Multiple Destinations'!W42 -> 0 | W26: ='Per Diem Multiple Destinations'!W50 -> 0 | X26: ='Per Diem Multiple Destinations'!W58 -> 0
A27: 2 | B27: 0 | C27: 0 | D27: 1 | E27: 1 | I27: =I23/I24 -> 0.4782608696
A28: 3 | B28: 0 | C28: 1 | D28: 1 | E28: 1 | I28: =I24/I25 -> 0.5609756098
A29: 4 | B29: 1 | C29: 1 | D29: 1 | E29: 1
A30: 5 | B30: 1 | C30: 1 | D30: 2 | E30: 1
A31: 6 | B31: 1 | C31: 2 | D31: 2 | E31: 1
A32: 7 | B32: 1 | C32: 2 | D32: 3 | E32: 1
A33: 8 | B33: 1 | C33: 2 | D33: 3 | E33: 2
A34: 9 | B34: 1 | C34: 2 | D34: 4 | E34: 2
A35: 10 | B35: 2 | C35: 2 | D35: 4 | E35: 2
A36: 11 | B36: 2 | C36: 3 | D36: 4 | E36: 2
A37: 12 | B37: 2 | C37: 3 | D37: 5 | E37: 2
A38: 13 | B38: 2 | C38: 3 | D38: 5 | E38: 3
A39: 14 | B39: 2 | C39: 4 | D39: 5 | E39: 3
A40: 15 | B40: 2 | C40: 4 | D40: 6 | E40: 3
A41: 16 | B41: 2 | C41: 4 | D41: 7 | E41: 3
A42: 17 | B42: 3 | C42: 4 | D42: 7 | E42: 3
A43: 18 | B43: 3 | C43: 5 | D43: 7 | E43: 3
A44: 19 | B44: 3 | C44: 5 | D44: 8 | E44: 3
A45: 20 | B45: 3 | C45: 5 | D45: 8 | E45: 4
A46: 21 | B46: 3 | C46: 5 | D46: 9 | E46: 4
A47: 22 | B47: 3 | C47: 6 | D47: 9 | E47: 4
A48: 23 | B48: 3 | C48: 6 | D48: 9 | E48: 5
A49: 24 | B49: 4 | C49: 6 | D49: 9 | E49: 5
A50: 25 | B50: 4 | C50: 6 | D50: 10 | E50: 5
A51: 26 | B51: 4 | C51: 7 | D51: 11 | E51: 5
A52: 27 | B52: 4 | C52: 7 | D52: 11 | E52: 5
A53: 28 | B53: 4 | C53: 7 | D53: 11 | E53: 6
A54: 29 | B54: 4 | C54: 7 | D54: 12 | E54: 6
A55: 30 | B55: 5 | C55: 7 | D55: 12 | E55: 6
A56: 31 | B56: 5 | C56: 8 | D56: 12 | E56: 6
A57: 32 | B57: 5 | C57: 8 | D57: 13 | E57: 6
A58: 33 | B58: 5 | C58: 8 | D58: 13 | E58: 7
A59: 34 | B59: 5 | C59: 9 | D59: 13 | E59: 7
A60: 35 | B60: 5 | C60: 9 | D60: 14 | E60: 7
A61: 36 | B61: 5 | C61: 9 | D61: 15 | E61: 7
A62: 37 | B62: 6 | C62: 9 | D62: 15 | E62: 7
A63: 38 | B63: 6 | C63: 10 | D63: 15 | E63: 7
A64: 39 | B64: 6 | C64: 10 | D64: 16 | E64: 7
A65: 40 | B65: 6 | C65: 10 | D65: 16 | E65: 8
A66: 41 | B66: 6 | C66: 10 | D66: 17 | E66: 8
A67: 42 | B67: 6 | C67: 11 | D67: 17 | E67: 8
A68: 43 | B68: 6 | C68: 11 | D68: 17 | E68: 9
A69: 44 | B69: 7 | C69: 11 | D69: 17 | E69: 9
A70: 45 | B70: 7 | C70: 11 | D70: 18 | E70: 9
A71: 46 | B71: 7 | C71: 12 | D71: 18 | E71: 9
A72: 47 | B72: 7 | C72: 12 | D72: 19 | E72: 9
A73: 48 | B73: 7 | C73: 12 | D73: 19 | E73: 10
A74: 49 | B74: 7 | C74: 12 | D74: 20 | E74: 10
A75: 50 | B75: 8 | C75: 12 | D75: 20 | E75: 10
A76: 51 | B76: 8 | C76: 13 | D76: 20 | E76: 10
A77: 52 | B77: 8 | C77: 13 | D77: 21 | E77: 10
A78: 53 | B78: 8 | C78: 13 | D78: 21 | E78: 11
A79: 54 | B79: 8 | C79: 14 | D79: 21 | E79: 11
A80: 55 | B80: 8 | C80: 14 | D80: 22 | E80: 11
A81: 56 | B81: 8 | C81: 14 | D81: 23 | E81: 11
A82: 57 | B82: 9 | C82: 14 | D82: 23 | E82: 11
A83: 58 | B83: 9 | C83: 15 | D83: 23 | E83: 11
A84: 59 | B84: 9 | C84: 15 | D84: 24 | E84: 11
A85: 60 | B85: 9 | C85: 15 | D85: 24 | E85: 12
A86: 61 | B86: 9 | C86: 15 | D86: 25 | E86: 12
A87: 62 | B87: 9 | C87: 16 | D87: 25 | E87: 12
A88: 63 | B88: 9 | C88: 16 | D88: 25 | E88: 13
A89: 64 | B89: 10 | C89: 16 | D89: 25 | E89: 13
A90: 65 | B90: 10 | C90: 16 | D90: 26 | E90: 13
A91: 66 | B91: 10 | C91: 17 | D91: 26 | E91: 13
A92: 67 | B92: 10 | C92: 17 | D92: 27 | E92: 13
A93: 68 | B93: 10 | C93: 17 | D93: 27 | E93: 14
A94: 69 | B94: 10 | C94: 17 | D94: 28 | E94: 14
A95: 70 | B95: 11 | C95: 17 | D95: 28 | E95: 14
A96: 71 | B96: 11 | C96: 18 | D96: 28 | E96: 14
A97: 72 | B97: 11 | C97: 18 | D97: 29 | E97: 14
A98: 73 | B98: 11 | C98: 18 | D98: 29 | E98: 15
A99: 74 | B99: 11 | C99: 19 | D99: 29 | E99: 15
A100: 75 | B100: 11 | C100: 19 | D100: 30 | E100: 15
A101: 76 | B101: 11 | C101: 19 | D101: 31 | E101: 15
A102: 77 | B102: 12 | C102: 19 | D102: 31 | E102: 15
A103: 78 | B103: 12 | C103: 20 | D103: 31 | E103: 15
A104: 79 | B104: 12 | C104: 20 | D104: 32 | E104: 15
A105: 80 | B105: 12 | C105: 20 | D105: 32 | E105: 16
A106: 81 | B106: 12 | C106: 20 | D106: 33 | E106: 16
A107: 82 | B107: 12 | C107: 21 | D107: 33 | E107: 16
A108: 83 | B108: 12 | C108: 21 | D108: 33 | E108: 17
A109: 84 | B109: 13 | C109: 21 | D109: 33 | E109: 17
A110: 85 | B110: 13 | C110: 21 | D110: 34 | E110: 17
A111: 86 | B111: 13 | C111: 22 | D111: 34 | E111: 17
A112: 87 | B112: 13 | C112: 22 | D112: 35 | E112: 17
A113: 88 | B113: 13 | C113: 22 | D113: 35 | E113: 18
A114: 89 | B114: 13 | C114: 22 | D114: 36 | E114: 18
A115: 90 | B115: 14 | C115: 22 | D115: 36 | E115: 18
A116: 91 | B116: 14 | C116: 23 | D116: 36 | E116: 18
A117: 92 | B117: 14 | C117: 23 | D117: 37 | E117: 18
A118: 93 | B118: 14 | C118: 23 | D118: 37 | E118: 19
A119: 94 | B119: 14 | C119: 24 | D119: 37 | E119: 19
A120: 95 | B120: 14 | C120: 24 | D120: 38 | E120: 19
A121: 96 | B121: 14 | C121: 24 | D121: 39 | E121: 19
A122: 97 | B122: 15 | C122: 24 | D122: 39 | E122: 19
A123: 98 | B123: 15 | C123: 25 | D123: 39 | E123: 19
A124: 99 | B124: 15 | C124: 25 | D124: 40 | E124: 19
A125: 100 | B125: 15 | C125: 25 | D125: 40 | E125: 20
A126: 101 | B126: 15 | C126: 25 | D126: 41 | E126: 20
A127: 102 | B127: 15 | C127: 26 | D127: 41 | E127: 20
A128: 103 | B128: 15 | C128: 26 | D128: 41 | E128: 21
A129: 104 | B129: 16 | C129: 26 | D129: 41 | E129: 21
A130: 105 | B130: 16 | C130: 26 | D130: 42 | E130: 21
A131: 106 | B131: 16 | C131: 27 | D131: 42 | E131: 21
A132: 107 | B132: 16 | C132: 27 | D132: 43 | E132: 21
A133: 108 | B133: 16 | C133: 27 | D133: 43 | E133: 22
A134: 109 | B134: 16 | C134: 27 | D134: 44 | E134: 22
A135: 110 | B135: 17 | C135: 27 | D135: 44 | E135: 22
A136: 111 | B136: 17 | C136: 28 | D136: 44 | E136: 22
A137: 112 | B137: 17 | C137: 28 | D137: 45 | E137: 22
A138: 113 | B138: 17 | C138: 28 | D138: 45 | E138: 23
A139: 114 | B139: 17 | C139: 29 | D139: 45 | E139: 23
A140: 115 | B140: 17 | C140: 29 | D140: 46 | E140: 23
A141: 116 | B141: 17 | C141: 29 | D141: 47 | E141: 23
A142: 117 | B142: 18 | C142: 29 | D142: 47 | E142: 23
A143: 118 | B143: 18 | C143: 30 | D143: 47 | E143: 23
A144: 119 | B144: 18 | C144: 30 | D144: 48 | E144: 23
A145: 120 | B145: 18 | C145: 30 | D145: 48 | E145: 24
A146: 121 | B146: 18 | C146: 30 | D146: 49 | E146: 24
A147: 122 | B147: 18 | C147: 31 | D147: 49 | E147: 24
A148: 123 | B148: 18 | C148: 31 | D148: 49 | E148: 25
A149: 124 | B149: 19 | C149: 31 | D149: 49 | E149: 25
A150: 125 | B150: 19 | C150: 31 | D150: 50 | E150: 25
A151: 126 | B151: 19 | C151: 32 | D151: 50 | E151: 25
A152: 127 | B152: 19 | C152: 32 | D152: 51 | E152: 25
A153: 128 | B153: 19 | C153: 32 | D153: 51 | E153: 26
A154: 129 | B154: 19 | C154: 32 | D154: 52 | E154: 26
A155: 130 | B155: 20 | C155: 32 | D155: 52 | E155: 26
A156: 131 | B156: 20 | C156: 33 | D156: 52 | E156: 26
A157: 132 | B157: 20 | C157: 33 | D157: 53 | E157: 26
A158: 133 | B158: 20 | C158: 33 | D158: 53 | E158: 27
A159: 134 | B159: 20 | C159: 34 | D159: 53 | E159: 27
A160: 135 | B160: 20 | C160: 34 | D160: 54 | E160: 27
A161: 136 | B161: 20 | C161: 34 | D161: 55 | E161: 27
A162: 137 | B162: 21 | C162: 34 | D162: 55 | E162: 27
A163: 138 | B163: 21 | C163: 35 | D163: 55 | E163: 27
A164: 139 | B164: 21 | C164: 35 | D164: 56 | E164: 27
A165: 140 | B165: 21 | C165: 35 | D165: 56 | E165: 28
A166: 141 | B166: 21 | C166: 35 | D166: 57 | E166: 28
A167: 142 | B167: 21 | C167: 36 | D167: 57 | E167: 28
A168: 143 | B168: 21 | C168: 36 | D168: 57 | E168: 29
A169: 144 | B169: 22 | C169: 36 | D169: 57 | E169: 29
A170: 145 | B170: 22 | C170: 36 | D170: 58 | E170: 29
A171: 146 | B171: 22 | C171: 37 | D171: 58 | E171: 29
A172: 147 | B172: 22 | C172: 37 | D172: 59 | E172: 29
A173: 148 | B173: 22 | C173: 37 | D173: 59 | E173: 30
A174: 149 | B174: 22 | C174: 37 | D174: 60 | E174: 30
A175: 150 | B175: 23 | C175: 37 | D175: 60 | E175: 30
A176: 151 | B176: 23 | C176: 38 | D176: 60 | E176: 30
A177: 152 | B177: 23 | C177: 38 | D177: 61 | E177: 30
A178: 153 | B178: 23 | C178: 38 | D178: 61 | E178: 31
A179: 154 | B179: 23 | C179: 39 | D179: 61 | E179: 31
A180: 155 | B180: 23 | C180: 39 | D180: 62 | E180: 31
A181: 156 | B181: 23 | C181: 39 | D181: 63 | E181: 31
A182: 157 | B182: 24 | C182: 39 | D182: 63 | E182: 31
A183: 158 | B183: 24 | C183: 40 | D183: 63 | E183: 31
A184: 159 | B184: 24 | C184: 40 | D184: 64 | E184: 31
A185: 160 | B185: 24 | C185: 40 | D185: 64 | E185: 32
A186: 161 | B186: 24 | C186: 40 | D186: 65 | E186: 32
A187: 162 | B187: 24 | C187: 41 | D187: 65 | E187: 32
A188: 163 | B188: 24 | C188: 41 | D188: 65 | E188: 33
A189: 164 | B189: 25 | C189: 41 | D189: 65 | E189: 33
A190: 165 | B190: 25 | C190: 41 | D190: 66 | E190: 33
A191: 166 | B191: 25 | C191: 42 | D191: 66 | E191: 33
A192: 167 | B192: 25 | C192: 42 | D192: 67 | E192: 33
A193: 168 | B193: 25 | C193: 42 | D193: 67 | E193: 34
A194: 169 | B194: 25 | C194: 42 | D194: 68 | E194: 34
A195: 170 | B195: 26 | C195: 42 | D195: 68 | E195: 34
A196: 171 | B196: 26 | C196: 43 | D196: 68 | E196: 34
A197: 172 | B197: 26 | C197: 43 | D197: 69 | E197: 34
A198: 173 | B198: 26 | C198: 43 | D198: 69 | E198: 35
A199: 174 | B199: 26 | C199: 44 | D199: 69 | E199: 35
A200: 175 | B200: 26 | C200: 44 | D200: 70 | E200: 35
A201: 176 | B201: 26 | C201: 44 | D201: 71 | E201: 35
... 93 more rows
